Workbook

Sheet Directions
A1: 1) Open up the Raw Data Table and Click on Data ==> Refresh
A2: 2) After the data is refreshed push ctrl + A (this will convert the numeric Fiscal Years into a regular date format
A3: 3) Then open the master pivot table and then right click on the pivot table and select refresh data
B4: to update the data in the pivot table with the data in the raw data table
A5: 4) Then open the Bill vs Collect pivot table and then right click on the pivot table and select refresh data
B6: to update the data in the pivot table with the data in the raw data table

Sheet Sheet1
A1: DMIS_ID | B1: DMIS_Name | C1: Region | D1: Service | E1: Fiscal_Year | F1: Patient_Type | G1: Number_Dispositions | H1: Number_Claims | I1: Number_Collections | J1: Total_Billed | K1: Total_BilledPY1 | L1: Total_BilledPY2 | M1: Adjs_And_Refunds | N1: Amt_Collected_PY2PY2 | O1: Amt_Collected_PY1PY2 | P1: Amt_Collected_PY1PY1 | Q1: Amt_Collected_CY | R1: Amt_Collected_CYPY1 | S1: Amt_Collected_CYPY2 | T1: Amt_Uncollected | U1: Adjs_And_RefundsPY2 | V1: Adjs_And_RefundsPY1 | W1: Amt_UncollectedPY1 | X1: Amt_UncollectedPY2
A2: 0620 | B2: NH Guam | C2: Navy Medicine West | D2: Navy | E2: FY07, 4th Q | F2: Inpatient | G2: 1995 | H2: 65 | I2: 13 | J2: 964190.31 | K2: 755878.63 | L2: 278766.51 | M2: 232302.22 | N2: 95287.33 | O2: 35796.86 | P2: 195700.32 | Q2: 92492.74 | R2: 85370.68 | S2: 0 | T2: 639395.35 | U2: 145710.75 | V2: 390442.11 | W2: 84365.52 | X2: 1971.57
A3: 0612 | B3: Brian Allgood ACH - Seoul | C3: Pacific Regional Medical Command (PRMC) | D3: Army | E3: FY07, 4th Q | F3: Inpatient | G3: 1250 | H3: 12 | I3: 8 | J3: 137001.03 | K3: 274851.25 | L3: 153776.71 | M3: 2607 | N3: 79024.38 | O3: 25190.02 | P3: 113410.18 | Q3: 93031.62 | R3: 103297.62 | S3: 20393.49 | T3: 41362.41 | U3: 13516.2 | V3: 42607.61 | W3: 15535.84 | X3: 15652.62
A4: 0609 | B4: Bavaria MEDDAC | C4: Europe Regional Medical Command (ERMC) | D4: Army | E4: FY07, 4th Q | F4: Inpatient | G4: 0 | H4: 0 | I4: 0 | J4: 0 | K4: 29626.93 | L4: 38491.48 | M4: 0 | N4: 25299.66 | O4: 0 | P4: 28426.85 | Q4: 0 | R4: 0 | S4: 0 | T4: 0 | U4: 10007.12 | V4: 1200.08 | W4: 0 | X4: 3184.7
A5: 0607 | B5: Landstuhl Regional Medical Center | C5: Europe Regional Medical Command (ERMC) | D5: Army | E5: FY07, 4th Q | F5: Inpatient | G5: 3480 | H5: 68 | I5: 26 | J5: 997911.97 | K5: 1313285.01 | L5: 943252.95 | M5: 49353.94 | N5: 501516.92 | O5: 311428.6 | P5: 313949.57 | Q5: 417772.68 | R5: 526042.11 | S5: 32706.69 | T5: 530785.35 | U5: 96538.13 | V5: 248143.39 | W5: 225149.94 | X5: 1062.61
A6: 0606 | B6: Heidelberg MEDDAC | C6: Europe Regional Medical Command (ERMC) | D6: Army | E6: FY07, 4th Q | F6: Inpatient | G6: 976 | H6: 2 | I6: 2 | J6: 92361.11 | K6: 137531.87 | L6: 151813.72 | M6: 1352.8 | N6: 76566.93 | O6: 15812.55 | P6: 34285.46 | Q6: 17780.65 | R6: 87095.36 | S6: 0 | T6: 73227.66 | U6: 25669.53 | V6: 16051.05 | W6: 100 | X6: 33764.71
A7: 0131 | B7: Ft. Irwin (Weed Army Community Hospital) | C7: Western Regional Medical Command (WRMC) | D7: Army | E7: FY07, 4th Q | F7: Inpatient | G7: 834 | H7: 1 | I7: 1 | J7: 4941.23 | K7: 13912.93 | L7: 23114.79 | M7: 0 | N7: 22170.88 | O7: 0 | P7: 0 | Q7: 4941.23 | R7: 5249.4 | S7: 0 | T7: 0 | U7: 943.91 | V7: 206.8 | W7: 8456.73 | X7: 0
A8: 0127 | B8: NH Oak Harbor | C8: Navy Medicine West | D8: Navy | E8: FY07, 4th Q | F8: Inpatient | G8: 1011 | H8: 5 | I8: 5 | J8: 38122.71 | K8: 18669.72 | L8: 74929.31 | M8: 4597.7 | N8: 41394.28 | O8: 14295.19 | P8: 7773.8 | Q8: 28658.34 | R8: 3556.39 | S8: 0 | T8: 4866.67 | U8: 19239.84 | V8: 7339.53 | W8: 0 | X8: 0
A9: 0126 | B9: NH Bremerton | C9: Navy Medicine West | D9: Navy | E9: FY07, 4th Q | F9: Inpatient | G9: 2399 | H9: 54 | I9: 36 | J9: 426888.88 | K9: 566733.51 | L9: 721314.24 | M9: 158106.36 | N9: 317891.05 | O9: 51045.4 | P9: 207758.01 | Q9: 212207.9 | R9: 57352.42 | S9: 0 | T9: 56574.62 | U9: 352377.79 | V9: 301623.08 | W9: 0 | X9: 0
A10: 0125 | B10: Ft. Lewis (Madigan Army Medical Center) | C10: Western Regional Medical Command (WRMC) | D10: Army | E10: FY07, 4th Q | F10: Inpatient | G10: 10999 | H10: 523 | I10: 272 | J10: 10910814.53 | K10: 6265209.1 | L10: 6684573.97 | M10: 3629174.64 | N10: 2358694.96 | O10: 1022567.13 | P10: 2365401.88 | Q10: 3826197.21 | R10: 802585.21 | S10: 79713.04 | T10: 3455442.68 | U10: 1659427.89 | V10: 2100803.08 | W10: 996418.93 | X10: 1564170.95
A11: 0124 | B11: NMC Portsmouth (VA) | C11: Navy Medicine East | D11: Navy | E11: FY07, 4th Q | F11: Inpatient | G11: 13412 | H11: 245 | I11: 124 | J11: 3790183.26 | K11: 4144593.26 | L11: 4103438.22 | M11: 1852682.95 | N11: 1024819.2 | O11: 478340.49 | P11: 980497.82 | Q11: 987473.14 | R11: 734820.15 | S11: 18290.01 | T11: 950027.17 | U11: 2581988.52 | V11: 2358787.52 | W11: 70487.77 | X11: 0
A12: 0123 | B12: Ft. Belvoir (FT. Belvoir Community Hospital) | C12: JTF-CAPMED | D12: Army | E12: FY07, 4th Q | F12: Inpatient | G12: 2697 | H12: 70 | I12: 29 | J12: 602714.99 | K12: 1045808.77 | L12: 612451.96 | M12: 104485.24 | N12: 110005.91 | O12: 140915.8 | P12: 409905.28 | Q12: 158066 | R12: 48900.08 | S12: 0 | T12: 340163.75 | U12: 228808.56 | V12: 334306.99 | W12: 252696.42 | X12: 132721.69
A13: 0121 | B13: Ft. Eustis (McDonald Army Health Center) | C13: Northern Regional Medical Command (NRMC) | D13: Army | E13: FY07, 4th Q | F13: Inpatient | G13: 0 | H13: 0 | I13: 0 | J13: 0 | K13: 3311.67 | L13: 5099.11 | M13: 0 | N13: 0 | O13: 0 | P13: 0 | Q13: 0 | R13: 0 | S13: 0 | T13: 0 | U13: 0 | V13: 0 | W13: 3311.67 | X13: 5099.11
A14: 0120 | B14: Langley AFB (1st Medical Group) | C14: ACC | D14: Air Force | E14: FY07, 4th Q | F14: Inpatient | G14: 2222 | H14: 16 | I14: 0 | J14: 122504 | K14: 88883.16 | L14: 103452.06 | M14: 57004.87 | N14: 12464.41 | O14: 12067.09 | P14: 2324.04 | Q14: 0 | R14: 6842.84 | S14: 0 | T14: 65499.13 | U14: 78920.56 | V14: 68901.53 | W14: 10814.75 | X14: 0
A15: 0117 | B15: Lackland AFB (59th Medical Wing) | C15: AETC | D15: Air Force | E15: FY07, 4th Q | F15: Inpatient | G15: 13078 | H15: 509 | I15: 299 | J15: 10365645.9 | K15: 11164888.83 | L15: 10471001.67 | M15: 1685264.23 | N15: 3181779.07 | O15: 994745.75 | P15: 3035138.58 | Q15: 3264475.38 | R15: 1938006.26 | S15: 37440.87 | T15: 5415906.29 | U15: 4189798.6 | V15: 2949647.19 | W15: 3242096.8 | X15: 2067237.38
A16: 0110 | B16: Ft. Hood (C.R. Darnall Army Medical Center) | C16: Southern Regional Medical Command (SRMC) | D16: Army | E16: FY07, 4th Q | F16: Inpatient | G16: 6633 | H16: 96 | I16: 72 | J16: 762389.76 | K16: 511062.17 | L16: 701103.3 | M16: 158993.76 | N16: 341331.54 | O16: 66665.93 | P16: 225790.17 | Q16: 491396.78 | R16: 75085.8 | S16: 0 | T16: 111999.22 | U16: 293954.4 | V16: 185347.62 | W16: 24838.58 | X16: -848.57
A17: 0109 | B17: Ft. Sam Houston (Brooke Army Medical Center) | C17: Southern Regional Medical Command (SRMC) | D17: Army | E17: FY07, 4th Q | F17: Inpatient | G17: 8970 | H17: 522 | I17: 337 | J17: 10008715.44 | K17: 7953983.59 | L17: 6611029.99 | M17: 861313.37 | N17: 2445239.77 | O17: 766302.81 | P17: 2646033.35 | Q17: 3891766.93 | R17: 857605.25 | S17: 2733.68 | T17: 5255635.14 | U17: 1378748.01 | V17: 1749326.9 | W17: 2701018.09 | X17: 2018005.72
A18: 0108 | B18: Ft. Bliss (William Beaumont Army Medical Center) | C18: Western Regional Medical Command (WRMC) | D18: Army | E18: FY07, 4th Q | F18: Inpatient | G18: 6204 | H18: 168 | I18: 74 | J18: 2539850.92 | K18: 2594200.45 | L18: 2902912.82 | M18: 173802.76 | N18: 792624.45 | O18: 413105.81 | P18: 749801.17 | Q18: 562538.01 | R18: 265948.44 | S18: 0 | T18: 1803510.15 | U18: 165225.01 | V18: 326788.26 | W18: 1251662.58 | X18: 1531957.55
A19: 0105 | B19: Ft. Jackson (Moncrief Army Community Hospital) | C19: Southern Regional Medical Command (SRMC) | D19: Army | E19: FY07, 4th Q | F19: Inpatient | G19: 160 | H19: 6 | I19: 4 | J19: 81115.97 | K19: 26180.17 | L19: 21839.13 | M19: 43426.07 | N19: 3613.26 | O19: 15618.2 | P19: 0 | Q19: 19597.29 | R19: 3998.24 | S19: 0 | T19: 18092.61 | U19: 2607.67 | V19: 10488.81 | W19: 11693.12 | X19: 0
A20: 0104 | B20: NH Beaufort | C20: Navy Medicine East | D20: Navy | E20: FY07, 4th Q | F20: Inpatient | G20: 283 | H20: 4 | I20: 2 | J20: 54338.32 | K20: 127571.57 | L20: 75279.89 | M20: 21781.66 | N20: 9335.3 | O20: 11521.58 | P20: 16081.07 | Q20: 1274.74 | R20: 11021.08 | S20: 0 | T20: 31281.92 | U20: 54423.01 | V20: 75226.95 | W20: 25242.47 | X20: 0
A21: 0100 | B21: NBHC Newport | C21: Navy Medicine East | D21: Navy | E21: FY07, 4th Q | F21: Inpatient | G21: 350 | H21: 0 | I21: 0 | J21: 0 | K21: 8325 | L21: 3459 | M21: 0 | N21: 1158 | O21: 0 | P21: 776 | Q21: 0 | R21: 1626 | S21: 21 | T21: 0 | U21: 2280 | V21: 5923 | W21: 0 | X21: 0
A22: 0098 | B22: Ft. Sill (Reynolds Army Community Hospital) | C22: Southern Regional Medical Command (SRMC) | D22: Army | E22: FY07, 4th Q | F22: Inpatient | G22: 2503 | H22: 33 | I22: 20 | J22: 250518.27 | K22: 151615.81 | L22: 235605.14 | M22: 77032.55 | N22: 54624.1 | O22: 48515.91 | P22: 31455.97 | Q22: 82844.57 | R22: 58594.87 | S22: 17950.21 | T22: 90641.15 | U22: 114514.92 | V22: 60750.65 | W22: 814.32 | X22: 0
A23: 0095 | B23: Wright Patterson AFB (88th Medical Group) | C23: AFMC | D23: Air Force | E23: FY07, 4th Q | F23: Inpatient | G23: 3675 | H23: 385 | I23: 163 | J23: 6122597.44 | K23: 5167204.57 | L23: 4652511.26 | M23: 2653663.99 | N23: 1017474.85 | O23: 791110.58 | P23: 1221120.32 | Q23: 1468969.45 | R23: 555859.78 | S23: -32946.59 | T23: 1999964 | U23: 2740181.94 | V23: 3162440.12 | W23: 227784.35 | X23: 136690.48
A24: 0092 | B24: NHC Cherry Point | C24: Navy Medicine East | D24: Navy | E24: FY07, 4th Q | F24: Inpatient | G24: 469 | H24: 4 | I24: 1 | J24: 31255.28 | K24: 49224.14 | L24: 119650.1 | M24: 9939.44 | N24: 42864.08 | O24: 34369.1 | P24: 30912.63 | Q24: 2576.12 | R24: 0 | S24: 0 | T24: 18739.72 | U24: 30489.14 | V24: 18311.51 | W24: 0 | X24: 11927.78
A25: 0091 | B25: NH Camp Lejeune | C25: Navy Medicine East | D25: Navy | E25: FY07, 4th Q | F25: Inpatient | G25: 4892 | H25: 62 | I25: 22 | J25: 496190.55 | K25: 438989.33 | L25: 453894.86 | M25: 143466.51 | N25: 177725.92 | O25: 60514.9 | P25: 177606.96 | Q25: 131667 | R25: 69923.12 | S25: 1389.91 | T25: 221057.04 | U25: 196802.62 | V25: 191459.25 | W25: 0 | X25: 17461.51
A26: 0089 | B26: Ft. Bragg (Womack Army Medical Center) | C26: Northern Regional Medical Command (NRMC) | D26: Army | E26: FY07, 4th Q | F26: Inpatient | G26: 9325 | H26: 236 | I26: 79 | J26: 2711337.95 | K26: 2428518.41 | L26: 2131784.44 | M26: 1060744.76 | N26: 568045.15 | O26: 238085.4 | P26: 576550.04 | Q26: 524507.26 | R26: 379329.32 | S26: 44001.42 | T26: 1126085.93 | U26: 491729 | V26: 421133.91 | W26: 1051505.14 | X26: 789923.47
A27: 0086 | B27: West Point (Keller Army Community Hospital) | C27: Northern Regional Medical Command (NRMC) | D27: Army | E27: FY07, 4th Q | F27: Inpatient | G27: 339 | H27: 14 | I27: 9 | J27: 100594.14 | K27: 121250.83 | L27: 97594.68 | M27: 29858.95 | N27: 2962.27 | O27: 39792.94 | P27: 20184.92 | Q27: 30048.21 | R27: 25222.71 | S27: 4540.63 | T27: 40686.98 | U27: 23678.04 | V27: 19879.75 | W27: 55963.45 | X27: 26620.8
A28: 0079 | B28: Nellis AFB (99th Medical Group) | C28: ACC | D28: Air Force | E28: FY07, 4th Q | F28: Inpatient | G28: 2459 | H28: 99 | I28: 66 | J28: 926741.16 | K28: 909327.55 | L28: 858993.91 | M28: 75633.67 | N28: 263499.59 | O28: 198398.22 | P28: 343300.05 | Q28: 426125.85 | R28: 211689.87 | S28: 68.36 | T28: 424981.64 | U28: 199581.38 | V28: 87459.62 | W28: 266878.01 | X28: 197446.36
A29: 0075 | B29: Ft. Leonard Wood (Wood Army Community Hospital) | C29: Western Regional Medical Command (WRMC) | D29: Army | E29: FY07, 4th Q | F29: Inpatient | G29: 1620 | H29: 39 | I29: 12 | J29: 272467.31 | K29: 373151.12 | L29: 283068.46 | M29: 65327.6 | N29: 81920.94 | O29: 11968.56 | P29: 35514.07 | Q29: 27006.75 | R29: 2823.46 | S29: 7350.21 | T29: 180132.96 | U29: 124380.3 | V29: 238888.86 | W29: 95924.73 | X29: 57448.45
A30: 0073 | B30: Keesler AFB (81st Medical Group) | C30: AETC | D30: Air Force | E30: FY07, 4th Q | F30: Inpatient | G30: 1396 | H30: 40 | I30: 21 | J30: 412088.72 | K30: 61814.19 | L30: 3231997.22 | M30: 0 | N30: 1105324.27 | O30: 473070.9 | P30: 0 | Q30: 85982.73 | R30: 25365.46 | S30: 16927.48 | T30: 326105.99 | U30: 566567.61 | V30: 0 | W30: 36448.73 | X30: 1070106.96
A31: 0067 | B31: Walter Reed National Military Medical Center | C31: Navy Medicine NCA | D31: Navy | E31: FY07, 4th Q | F31: Inpatient | G31: 7633 | H31: 473 | I31: 202 | J31: 9642305.4 | K31: 8933822.41 | L31: 8769871.31 | M31: 2574735.74 | N31: 2478586.07 | O31: 610693.47 | P31: 1952867.06 | Q31: 1597617.35 | R31: 1049403.27 | S31: 15277.56 | T31: 5469952.31 | U31: 4762919.46 | V31: 3578749.21 | W31: 2352802.87 | X31: 902394.75
A32: 0066 | B32: Andrews AFB (79th Medical Group) | C32: AMC | D32: Air Force | E32: FY07, 4th Q | F32: Inpatient | G32: 1573 | H32: 134 | I32: 87 | J32: 1636969.64 | K32: 1901373.96 | L32: 2370261.06 | M32: 649473.28 | N32: 440598.18 | O32: 359402.03 | P32: 640371.94 | Q32: 620457.44 | R32: 352038.68 | S32: 206688.67 | T32: 367038.92 | U32: 1190775.94 | V32: 790658.91 | W32: 118304.43 | X32: 172796.24
A33: 0064 | B33: Ft. Polk (Bayne-Jones Army Community Hospital) | C33: Southern Regional Medical Command (SRMC) | D33: Army | E33: FY07, 4th Q | F33: Inpatient | G33: 1356 | H33: 10 | I33: 8 | J33: 94127.74 | K33: 142625.29 | L33: 215205.9 | M33: 14765.97 | N33: 95305.83 | O33: 2829.77 | P33: 60370.54 | Q33: 43888.08 | R33: 9101.25 | S33: 0 | T33: 35473.69 | U33: 113346.57 | V33: 67835.14 | W33: 5318.36 | X33: 3723.73
A34: 0061 | B34: Ft. Knox (Ireland Army Community Hospital) | C34: Northern Regional Medical Command (NRMC) | D34: Army | E34: FY07, 4th Q | F34: Inpatient | G34: 1378 | H34: 14 | I34: 4 | J34: 97532.08 | K34: 134726.2 | L34: 152981.99 | M34: 41098.75 | N34: 60894.02 | O34: 24440.21 | P34: 68037.79 | Q34: 14553.89 | R34: 21999.67 | S34: 0 | T34: 41879.44 | U34: 67647.76 | V34: 35059.4 | W34: 9629.34 | X34: 0
A35: 0060 | B35: Ft. Campbell (Blanchfield Army Comm Hospital) | C35: Southern Regional Medical Command (SRMC) | D35: Army | E35: FY07, 4th Q | F35: Inpatient | G35: 4964 | H35: 71 | I35: 45 | J35: 467622.84 | K35: 359455.15 | L35: 351521.36 | M35: 104305.42 | N35: 157031.17 | O35: 37756.91 | P35: 154309.28 | Q35: 189251.3 | R35: 63780.24 | S35: 0 | T35: 174066.12 | U35: 156733.28 | V35: 137752.94 | W35: 3612.69 | X35: 0
A36: 0057 | B36: Ft. Riley (Irwin Army Community Hospital) | C36: Western Regional Medical Command (WRMC) | D36: Army | E36: FY07, 4th Q | F36: Inpatient | G36: 2146 | H36: 27 | I36: 14 | J36: 244621.27 | K36: 134742.56 | L36: 163084.14 | M36: 72211.23 | N36: 95905.84 | O36: 31807.58 | P36: 94981.86 | Q36: 99884.66 | R36: 0 | S36: 0 | T36: 72525.38 | U36: 28954.46 | V36: 32344.06 | W36: 7416.64 | X36: 6416.26
A37: 0056 | B37: NHC Great Lakes | C37: Navy Medicine East | D37: Navy | E37: FY07, 4th Q | F37: Inpatient | G37: 0 | H37: 0 | I37: 0 | J37: 0 | K37: 104099.73 | L37: 39342.31 | M37: 0 | N37: 210.27 | O37: 14820.8 | P37: 48641.48 | Q37: 0 | R37: 0 | S37: 0 | T37: 0 | U37: 14124.68 | V37: 55458.25 | W37: 0 | X37: 10186.56
A38: 0053 | B38: Mountain Home AFB (366th Medical Group) | C38: ACC | D38: Air Force | E38: FY07, 4th Q | F38: Inpatient | G38: 596 | H38: 18 | I38: 13 | J38: 149581.21 | K38: 140596.48 | L38: 216054.82 | M38: 24450.94 | N38: 97738.3 | O38: 13221.04 | P38: 99616.11 | Q38: 75558.74 | R38: 2349.2 | S38: 0 | T38: 49571.53 | U38: 90828.13 | V38: 34824.74 | W38: 3806.43 | X38: 14267.35
A39: 0052 | B39: Ft. Shafter (Tripler Army Medical Center) | C39: Pacific Regional Medical Command (PRMC) | D39: Army | E39: FY07, 4th Q | F39: Inpatient | G39: 10341 | H39: 238 | I39: 171 | J39: 4744131.44 | K39: 4529419.51 | L39: 3700368.91 | M39: 1891218.94 | N39: 810884.82 | O39: 485472.31 | P39: 1139478.6 | Q39: 1581444.14 | R39: 491730.5 | S39: 71456.98 | T39: 1271468.36 | U39: 1946948.06 | V39: 2218194.03 | W39: 680016.38 | X39: 385606.74
A40: 0049 | B40: Ft. Stewart (Winn Army Community Hospital) | C40: Southern Regional Medical Command (SRMC) | D40: Army | E40: FY07, 4th Q | F40: Inpatient | G40: 3348 | H40: 37 | I40: 25 | J40: 135416.65 | K40: 183190.03 | L40: 221600.9 | M40: 37810.81 | N40: 107299.03 | O40: 20772.79 | P40: 71294.83 | Q40: 62276.98 | R40: 5861.14 | S40: 0 | T40: 35328.86 | U40: 93529.08 | V40: 106034.06 | W40: 0 | X40: 0
A41: 0048 | B41: Ft. Benning (Martin Army Community Hospital) | C41: Southern Regional Medical Command (SRMC) | D41: Army | E41: FY07, 4th Q | F41: Inpatient | G41: 2993 | H41: 64 | I41: 54 | J41: 606504.43 | K41: 804396.71 | L41: 847970.35 | M41: 206927.15 | N41: 278619.04 | O41: 112909.04 | P41: 346162.91 | Q41: 285620.67 | R41: 76514.06 | S41: 0 | T41: 113956.61 | U41: 443603.99 | V41: 359478.3 | W41: 22241.44 | X41: 12838.28
A42: 0047 | B42: Ft. Gordon (Eisenhower Army Medical Center) | C42: Southern Regional Medical Command (SRMC) | D42: Army | E42: FY07, 4th Q | F42: Inpatient | G42: 3179 | H42: 241 | I42: 139 | J42: 3737206.82 | K42: 3985398.26 | L42: 4118607.35 | M42: 1888946.05 | N42: 1068691.51 | O42: 596476.79 | P42: 911228.08 | Q42: 1113550.26 | R42: 539843.63 | S42: 5020.75 | T42: 734710.51 | U42: 2448418.3 | V42: 2518123.89 | W42: 16202.66 | X42: 0
A43: 0045 | B43: MacDill AFB (6th Medical Group) | C43: AMC | D43: Air Force | E43: FY07, 4th Q | F43: Inpatient | G43: 0 | H43: 0 | I43: 0 | J43: 0 | K43: 0 | L43: 43720.59 | M43: 0 | N43: 22951.7 | O43: 2067.03 | P43: 0 | Q43: 0 | R43: 0 | S43: 0 | T43: 0 | U43: 12977.38 | V43: 0 | W43: 0 | X43: 5724.48
A44: 0042 | B44: Eglin AFB (96th Medical Group) | C44: AFMC | D44: Air Force | E44: FY07, 4th Q | F44: Inpatient | G44: 3284 | H44: 92 | I44: 46 | J44: 1085995.36 | K44: 672966.66 | L44: 625664.16 | M44: 299081.35 | N44: 71157.83 | O44: 176583.36 | P44: 224282.35 | Q44: 352017.52 | R44: 194795.2 | S44: 71656.2 | T44: 434896.49 | U44: 249548.16 | V44: 237377.04 | W44: 16512.07 | X44: 56718.61
A45: 0039 | B45: NH Jacksonville | C45: Navy Medicine East | D45: Navy | E45: FY07, 4th Q | F45: Inpatient | G45: 3904 | H45: 94 | I45: 35 | J45: 926925.62 | K45: 846391.43 | L45: 954298.9 | M45: 163386.33 | N45: 443860.52 | O45: 37582.15 | P45: 327370.76 | Q45: 201401.04 | R45: 120575.26 | S45: 0 | T45: 562138.25 | U45: 331532.66 | V45: 320780.05 | W45: 77665.36 | X45: 141323.57
A46: 0038 | B46: NH Pensacola | C46: Navy Medicine East | D46: Navy | E46: FY07, 4th Q | F46: Inpatient | G46: 2548 | H46: 68 | I46: 26 | J46: 611425.18 | K46: 843958.16 | L46: 609440.32 | M46: 302047.67 | N46: 175080.69 | O46: 66522.1 | P46: 152048.06 | Q46: 98672.45 | R46: 40403.87 | S46: 29942.18 | T46: 210705.06 | U46: 337606.13 | V46: 606858.68 | W46: 44647.55 | X46: 289.22
A47: 0037 | B47: Washington D.C. (Walter Reed Army Medical Center) | C47: Northern Regional Medical Command (NRMC) | D47: Army | E47: FY07, 4th Q | F47: Inpatient | G47: 7292 | H47: 561 | I47: 115 | J47: 13905503.32 | K47: 13217252.31 | L47: 10442894.58 | M47: 1145958.96 | N47: 2481715.73 | O47: 1092353.02 | P47: 3225867.96 | Q47: 1901147.86 | R47: 789460.82 | S47: 38277 | T47: 10858396.5 | U47: 5861897.56 | V47: 5540709.64 | W47: 3661213.89 | X47: 968651.27
A48: 0033 | B48: USAF Academy (10th Medical Group) | C48: AFA | D48: Air Force | E48: FY07, 4th Q | F48: Inpatient | G48: 750 | H48: 33 | I48: 8 | J48: 322063.55 | K48: 331345.52 | L48: 313521.76 | M48: 15473.57 | N48: 86476.99 | O48: 98891.92 | P48: 67845.65 | Q48: 51058.25 | R48: 113595.25 | S48: 5134.51 | T48: 255531.73 | U48: 82013.18 | V48: 55934.24 | W48: 93970.38 | X48: 41005.16
A49: 0032 | B49: Ft. Carson (Evans Army Community Hospital) | C49: Western Regional Medical Command (WRMC) | D49: Army | E49: FY07, 4th Q | F49: Inpatient | G49: 4293 | H49: 36 | I49: 19 | J49: 286958.31 | K49: 391297.88 | L49: 270234.11 | M49: 95491.66 | N49: 111885.82 | O49: 24515.17 | P49: 206796.4 | Q49: 114499.42 | R49: 35666.12 | S49: 0 | T49: 76967.23 | U49: 126395.86 | V49: 138635.85 | W49: 10199.51 | X49: 7437.26
A50: 0030 | B50: NH 29 Palms | C50: Navy Medicine West | D50: Navy | E50: FY07, 4th Q | F50: Inpatient | G50: 963 | H50: 5 | I50: 4 | J50: 41809.81 | K50: 32328.06 | L50: 85236.32 | M50: 25133.02 | N50: 28763.12 | O50: 14162.64 | P50: 14717.61 | Q50: 16676.79 | R50: 8639.97 | S50: 0 | T50: 0 | U50: 42310.56 | V50: 8970.48 | W50: 0 | X50: 0
A51: 0029 | B51: NMC San Diego | C51: Navy Medicine West | D51: Navy | E51: FY07, 4th Q | F51: Inpatient | G51: 14334 | H51: 198 | I51: 99 | J51: 3591438.15 | K51: 3597742.76 | L51: 4165283.49 | M51: 1627959.76 | N51: 1583871.68 | O51: 270177.12 | P51: 890656.36 | Q51: 1136295.06 | R51: 206847.24 | S51: 2683 | T51: 827183.33 | U51: 2308551.69 | V51: 2500239.16 | W51: 0 | X51: 0
A52: 0028 | B52: NH Lemoore | C52: Navy Medicine West | D52: Navy | E52: FY07, 4th Q | F52: Inpatient | G52: 925 | H52: 13 | I52: 2 | J52: 85989.47 | K52: 58258.46 | L52: 72888.46 | M52: 21289.74 | N52: 11517.01 | O52: 18076.26 | P52: 8767.23 | Q52: 1527.91 | R52: 10223.31 | S52: 12934.21 | T52: 63171.82 | U52: 30360.98 | V52: 26980.59 | W52: 12287.33 | X52: 0
A53: 0024 | B53: NH Camp Pendelton | C53: Navy Medicine West | D53: Navy | E53: FY07, 4th Q | F53: Inpatient | G53: 3848 | H53: 13 | I53: 7 | J53: 75181.76 | K53: 206015.04 | L53: 355002.77 | M53: 10613.82 | N53: 136961.79 | O53: 59411.18 | P53: 73210.6 | Q53: 41317.58 | R53: 37992.94 | S53: 0 | T53: 23250.36 | U53: 158629.8 | V53: 74583.51 | W53: 20227.99 | X53: 0
A54: 0014 | B54: Travis AFB (60th Medical Group) | C54: AMC | D54: Air Force | E54: FY07, 4th Q | F54: Inpatient | G54: 3985 | H54: 170 | I54: 51 | J54: 3555306.41 | K54: 2974433.86 | L54: 2267389.94 | M54: 1451130.43 | N54: 424560.7 | O54: 604900.84 | P54: 431595.04 | Q54: 399698.86 | R54: 311155.96 | S54: 64564.72 | T54: 1704477.12 | U54: 1040627.79 | V54: 1787516.07 | W54: 444166.79 | X54: 132735.89
A55: 0006 | B55: Elmendorf AFB (3rd Medical group) | C55: Pacific | D55: Air Force | E55: FY07, 4th Q | F55: Inpatient | G55: 2794 | H55: 177 | I55: 86 | J55: 1541059.63 | K55: 1330189.41 | L55: 1531403.25 | M55: 580746.47 | N55: 837999.96 | O55: 253446.6 | P55: 636064.48 | Q55: 601349.46 | R55: 191960.65 | S55: 43686.33 | T55: 358963.7 | U55: 355747.22 | V55: 426249.27 | W55: 75915.01 | X55: 40523.14
A56: 0005 | B56: Ft. Wainwright (Bassett Army Community Hospital) | C56: Western Regional Medical Command (WRMC) | D56: Army | E56: FY07, 4th Q | F56: Inpatient | G56: 1492 | H56: 45 | I56: 30 | J56: 594766.48 | K56: 478370.22 | L56: 537930.7 | M56: 49067.05 | N56: 237444.09 | O56: 183038.45 | P56: 181761.93 | Q56: 167153.09 | R56: 102850.31 | S56: 7812.9 | T56: 378546.34 | U56: 104025.71 | V56: 145000.41 | W56: 48757.57 | X56: 5609.55

Sheet Master Pivot Table
A1: Service | B1: (All)
A2: Region | B2: (All)
A3: DMIS Name | B3: (All)
C5: Fiscal Year
A6: Patient Type | B6: Data | C6: FY07, 4th Q | D6: FY08, 4th Q | E6: FY09, 4th Q | F6: FY10, 4th Q | G6: FY11, 4th Q | H6: FY12, 4th Q | I6: FY13, 4th Q | J6: FY14, 4th Q | K6: FY15, 4th Q | L6: FY16, 4th Q | M6: FY17, 4th Q | N6: FY18, 1st Q | O6: FY18, 2nd Q | P6: FY18, 3rd Q
A7: Inpatient | B7: Number of Dispositions CFY | C7: 193550 | D7: 189307 | E7: 193269 | F7: 198459 | G7: 186266 | H7: 188253 | I7: 179203 | J7: 186557 | K7: 192874 | L7: 174206 | M7: 171065 | N7: 30820 | O7: 73381 | P7: 107863
B8: Number of Claims CFY | C8: 6110 | D8: 6042 | E8: 5944 | F8: 5829 | G8: 5283 | H8: 5214 | I8: 4695 | J8: 5067 | K8: 5528 | L8: 4928 | M8: 5349 | N8: 0 | O8: 1743 | P8: 3238
B9: Claims Per Disposition CFY | C9: 0.03156807027 | D9: 0.03191641091 | E9: 0.0307550616 | F9: 0.02937130591 | G9: 0.02836266415 | H9: 0.02769676977 | I9: 0.02619933818 | J9: 0.02716059971 | K9: 0.0286611985 | L9: 0.02828834828 | M9: 0.03126881595 | N9: 0 | O9: 0.02375274254 | P9: 0.03001956185
B10: Number of Collections CFY | C10: 2987 | D10: 3022 | E10: 3083 | F10: 3100 | G10: 2626 | H10: 2529 | I10: 2298 | J10: 1803 | K10: 2348 | L10: 2065 | M10: 2426 | N10: 0 | O10: 518 | P10: 1351
B11: Avg Collection per Claim CFY | C11: 9245.502973 | D11: 9816.816128 | E11: 9347.63589 | F11: 9836.588065 | G11: 9570.760529 | H11: 9906.502977 | I11: 9598.054795 | J11: 9727.606872 | K11: 9374.438727 | L11: 7849.785559 | M11: 7741.175511 | N11: no data | O11: 2645.313012 | P11: 7960.739208
B12: Amount Collected CFY | C12: 27616317.38 | D12: 29666418.34 | E12: 28818761.45 | F12: 30493423 | G12: 25132817.15 | H12: 25053546.03 | I12: 22056329.92 | J12: 17538875.19 | K12: 22011182.13 | L12: 16209807.18 | M12: 18780091.79 | N12: 0 | O12: 1370272.14 | P12: 10754958.67
B13: Amount Billed CFY | C13: 101403923.7 | D13: 108517437.3 | E13: 101774095.3 | F13: 99528740.13 | G13: 91026226.53 | H13: 87178334.47 | I13: 77151879.94 | J13: 81804933.51 | K13: 83887371.94 | L13: 103753006.3 | M13: 58724018.59 | N13: 0 | O13: 21109405.23 | P13: 37993840.81
B14: Collected to Billed Ratio CFY | C14: 0.2723397317 | D14: 0.2733792751 | E14: 0.283164015 | F14: 0.3063780669 | G14: 0.2761052293 | H14: 0.2873827102 | I14: 0.2858819505 | J14: 0.2143987464 | K14: 0.2623896973 | L14: 0.1562345783 | M14: 0.3198025653 | N14: no data | O14: 0.06491287296 | P14: 0.2830711094
B15: Amount Collected CFY for AFY | C15: 40162033.26 | D15: 43871249.79 | E15: 46602465.83 | F15: 45575060.07 | G15: 37929769.39 | H15: 37385484.9 | I15: 36069226.69 | J15: 33577315.39 | K15: 39286697.39 | L15: 34952399.47 | M15: 37276723.45 | N15: 8648582.45 | O15: 14865736.36 | P15: 27202731.08
B16: Amount Collected AFY | C16: 104544323.2 | D16: 108847775.8 | E16: 116545468.2 | F16: 119727611.4 | G16: 110378416.4 | H16: 104840060.8 | I16: 97031663.14 | J16: 94310749.55 | K16: 93427994.1 | L16: 103287909.5 | M16: 97191868.9 | N16: 61677303.68 | O16: 67869215.82 | P16: 80234042.38
B17: Amount Billed CFY-PY2 | C17: 284671904 | D17: 307427615 | E17: 322064583.6 | F17: 323690052.1 | G17: 300386172.2 | H17: 284390967.2 | I17: 265065583.5 | J17: 275032271.6 | K17: 264829781 | L17: 352840767.3 | M17: 285032743.9 | N17: 166899890.3 | O17: 190776595.2 | P17: 208565676.2
B18: Collected to Billed Ratio CFY-PY2 | C18: 0.3672449641 | D18: 0.3540598518 | E18: 0.3618698675 | F18: 0.3698835062 | G18: 0.3674550517 | H18: 0.3686476468 | I18: 0.3660666234 | J18: 0.3429079395 | K18: 0.3527850748 | L18: 0.292732357 | M18: 0.3409849254 | N18: 0.3695467 | O18: 0.3557523173 | P18: 0.3846943746
B19: Closed Claims CFY | C19: 26445241.15 | D19: 27580638.51 | E19: 29719907.91 | F19: 37078012.92 | G19: 35413183.63 | H19: 32132850.35 | I19: 31823063.93 | J19: 27200819.1 | K19: 30669769.57 | L19: 24366846.71 | M19: 13962867.58 | N19: 0 | O19: 1995959.98 | P19: 10162729.1
B20: Closed to Billed Ratio CFY | C20: 0.2607911033 | D20: 0.2541585868 | E20: 0.2920183945 | F20: 0.3725357406 | G20: 0.3890437402 | H20: 0.3685875688 | I20: 0.4124729554 | J20: 0.3325082967 | K20: 0.3656065134 | L20: 0.2348543679 | M20: 0.2377709822 | N20: no data | O20: 0.09455311309 | P20: 0.2674835943
B21: Closed Claims CFY-PY2 | C21: 101811239.1 | D21: 107942211.2 | E21: 118370659.6 | F21: 140520076.1 | G21: 143405106.3 | H21: 134849254.4 | I21: 130549692.4 | J21: 127310456.5 | K21: 124688394.9 | L21: 150468553.6 | M21: 119666102 | N21: 67010561.69 | O21: 73927826.09 | P21: 91948445.15
B22: Closed to Billed CFY-PY2 | C22: 0.3576441428 | D22: 0.3511142327 | E22: 0.367537027 | F22: 0.4341192297 | G22: 0.4774024889 | H22: 0.4741685566 | I22: 0.4925184578 | J22: 0.4628927935 | K22: 0.4708246724 | L22: 0.4264488901 | M22: 0.4198328247 | N22: 0.4015015323 | O22: 0.3875099355 | P22: 0.4408608685
B23: Open Claims CFY | C23: 47342365.19 | D23: 51270380.44 | E23: 43235425.93 | F23: 31957304.21 | G23: 30480225.75 | H23: 29991938.09 | I23: 23272486.09 | J23: 37065239.22 | K23: 31206420.24 | L23: 63176352.4 | M23: 25981059.22 | N23: 0 | O23: 17743173.11 | P23: 17076153.04
B24: Open to Billed Ratio CFY | C24: 0.466869165 | D24: 0.4724621381 | E24: 0.4248175904 | F24: 0.3210861925 | G24: 0.3348510304 | H24: 0.3440297211 | I24: 0.3016450942 | J24: 0.453092957 | K24: 0.3720037893 | L24: 0.6089110538 | M24: 0.4424264525 | N24: no data | O24: 0.8405340139 | P24: 0.4494452963
B25: Open Claims CFY-PY2 | C25: 78316341.73 | D25: 90637628.04 | E25: 87148455.87 | F25: 63442364.63 | G25: 46602649.52 | H25: 44701651.97 | I25: 37484227.97 | J25: 53411065.56 | K25: 46713392.04 | L25: 99084304.25 | M25: 68174772.97 | N25: 38212024.9 | O25: 48979553.27 | P25: 36383188.68
B26: Open to Billed Ratio CFY-PY2 | C26: 0.2751108931 | D26: 0.2948259155 | E26: 0.2705931056 | F26: 0.1959972641 | G26: 0.1551424594 | H26: 0.1571837967 | I26: 0.1414149188 | J26: 0.194199267 | K26: 0.1763902529 | L26: 0.2808187529 | M26: 0.2391822499 | N26: 0.2289517677 | O26: 0.2567377472 | P26: 0.1744447569
A27: Outpatient | B27: Number of Dispositions CFY | C27: 13781548 | D27: 13748130 | E27: 13731086 | F27: 15683457 | G27: 13161313 | H27: 13810430 | I27: 13123381 | J27: 13529329 | K27: 12803291 | L27: 14305255 | M27: 13250081 | N27: 2787830 | O27: 5667883 | P27: 8631353
B28: Number of Claims CFY | C28: 2639639 | D28: 2651111 | E28: 2811671 | F28: 2654793 | G28: 2782706 | H28: 2611770 | I28: 2450911 | J28: 2283833 | K28: 1866910 | L28: 1928959 | M28: 2010640 | N28: 362139 | O28: 890720 | P28: 1391020
B29: Claims Per Disposition CFY | C29: 0.1915342892 | D29: 0.1928342982 | E29: 0.2047668334 | F29: 0.169273458 | G29: 0.2114307288 | H29: 0.1891157625 | I29: 0.1867591134 | J29: 0.1688060805 | K29: 0.1458148534 | L29: 0.1348426854 | M29: 0.1517454874 | N29: 0.129899958 | O29: 0.1571521501 | P29: 0.1611589747
B30: Number of Collections CFY | C30: 1123208 | D30: 1151592 | E30: 1247301 | F30: 1188803 | G30: 1152059 | H30: 1089503 | I30: 934379 | J30: 825406 | K30: 678260 | L30: 459634 | M30: 617787 | N30: 1354646 | O30: 221112 | P30: 407132
B31: Avg Collection per Claim CFY | C31: 78.74254729 | D31: 96.5725263 | E31: 101.2246635 | F31: 88.75475499 | G31: 84.05834647 | H31: 81.21159658 | I31: 81.45119012 | J31: 81.49617334 | K31: 85.71339332 | L31: 92.42125685 | M31: 104.8578854 | N31: 3.551901449 | O31: 95.17907441 | P31: 101.4603735
B32: Amount Collected CFY | C32: 88444259.06 | D32: 111212148.7 | E32: 126257624.1 | F32: 105511919 | G32: 96840174.58 | H32: 88480278.11 | I32: 76106281.57 | J32: 67267430.45 | K32: 58135966.15 | L32: 42479951.97 | M32: 64779838.45 | N32: 4811569.09 | O32: 21045235.5 | P32: 41307764.77
B33: Amount Billed CFY | C33: 308230758.6 | D33: 365911402.7 | E33: 394216355 | F33: 301608196.2 | G33: 289931779.5 | H33: 275764006.8 | I33: 249209709.7 | J33: 225662409.2 | K33: 192715243.5 | L33: 222676540.1 | M33: 246293642.4 | N33: 41894034.53 | O33: 103041492 | P33: 166560277.2
B34: Collected to Billed Ratio CFY | C34: 0.2869417038 | D34: 0.3039319023 | E34: 0.3202749517 | F34: 0.3498310733 | G34: 0.33401021 | H34: 0.3208550642 | I34: 0.305390515 | J34: 0.2980887721 | K34: 0.3016677098 | L34: 0.1907697684 | M34: 0.2630187195 | N34: 0.1148509363 | O34: 0.2042403996 | P34: 0.2480048993
B35: Amount Collected CFY for AFY | C35: 119569021.7 | D35: 166367222.2 | E35: 194162761.7 | F35: 174508527.2 | G35: 152619128 | H35: 130728866.9 | I35: 118408047.7 | J35: 101702910.9 | K35: 91010752.9 | L35: 67349036.99 | M35: 106419750.5 | N35: 27582437.31 | O35: 49872259.89 | P35: 75362886.01
B36: Amount Collected AFY | C36: 224404884.7 | D36: 324750651.7 | E36: 443651511.3 | F36: 471018608.8 | G36: 450565805.8 | H36: 380407389.9 | I36: 342587290.7 | J36: 306390814.3 | K36: 268508292.4 | L36: 222457369.9 | M36: 223102527.5 | N36: 172181252.8 | O36: 198735750.7 | P36: 223613851.2
B37: Amount Billed CFY-PY2 | C37: 673238163.7 | D37: 950054277.8 | E37: 1218152066 | F37: 1189536421 | G37: 1121115958 | H37: 967191930.1 | I37: 893622910 | J37: 830350788.8 | K37: 744486864.6 | L37: 722456976.5 | M37: 734527485.9 | N37: 567065173.8 | O37: 649339845.1 | P37: 710422923.1
B38: Collected to Billed Ratio CFY-PY2 | C38: 0.3333216933 | D38: 0.3418232614 | E38: 0.3642004343 | F38: 0.3959682113 | G38: 0.4018904578 | H38: 0.3933111703 | I38: 0.3833689656 | J38: 0.3689896108 | K38: 0.3606622295 | L38: 0.3079178099 | M38: 0.3037361185 | N38: 0.3036357384 | O38: 0.3060581484 | P38: 0.3147615933
B39: Closed Claims CFY | C39: 92541002.4 | D39: 102504620 | E39: 131871128.8 | F39: 103961018.2 | G39: 104280896.1 | H39: 89963208.19 | I39: 87307703.03 | J39: 70991335.43 | K39: 57840947.2 | L39: 42707240.27 | M39: 52932935.31 | N39: 3114070.54 | O39: 15012433.76 | P39: 32201132.27
B40: Closed to Billed Ratio CFY | C40: 0.3002328606 | D40: 0.2801350798 | E40: 0.3345146064 | F40: 0.3446889689 | G40: 0.3596739075 | H40: 0.3262325973 | I40: 0.350338288 | J40: 0.314590878 | K40: 0.3001368556 | L40: 0.191790479 | M40: 0.214917993 | N40: 0.07433207556 | O40: 0.1456930938 | P40: 0.1933302035
B41: Closed Claims CFY-PY2 | C41: 269811944.4 | D41: 406863353.2 | E41: 562734808.6 | F41: 566740612.2 | G41: 540893695.3 | H41: 448249453.3 | I41: 410530008.6 | J41: 385191929.1 | K41: 365216552.8 | L41: 273214827.5 | M41: 251460757.4 | N41: 179680905.3 | O41: 218167992.4 | P41: 254258067.1
B42: Closed to Billed CFY-PY2 | C42: 0.4007674534 | D42: 0.4282527458 | E42: 0.4619577675 | F42: 0.4764382177 | G42: 0.4824600803 | H42: 0.4634545009 | I42: 0.4593996014 | J42: 0.4638906042 | K42: 0.490561446 | L42: 0.37817453 | M42: 0.3423435641 | N42: 0.3168611187 | O42: 0.3359842985 | P42: 0.3578967666
B43: Open Claims CFY | C43: 127245497.2 | D43: 152194634 | E43: 136087602.1 | F43: 92135259.05 | G43: 88810708.9 | H43: 97320520.51 | I43: 85795725.08 | J43: 87403643.28 | K43: 76738330.13 | L43: 137489347.8 | M43: 128580868.6 | N43: 33968394.9 | O43: 66983822.75 | P43: 93051380.11
B44: Open to Billed Ratio CFY | C44: 0.4128254355 | D44: 0.4159330179 | E44: 0.3452104419 | F44: 0.3054799578 | G44: 0.3063158824 | H44: 0.3529123385 | I44: 0.3442711971 | J44: 0.3873203499 | K44: 0.3981954346 | L44: 0.6174397527 | M44: 0.5220632875 | N44: 0.8108169882 | O44: 0.6500665066 | P44: 0.5586648972
B45: Open Claims CFY-PY2 | C45: 179021334.6 | D45: 218440272.9 | E45: 211765745.6 | F45: 151777199.7 | G45: 129656457.3 | H45: 138535086.9 | I45: 140505610.7 | J45: 138768045.4 | K45: 110762019.4 | L45: 226784779 | M45: 259964201 | N45: 215203015.7 | O45: 232436102.1 | P45: 232551004.8
B46: Open to Billed Ratio CFY-PY2 | C46: 0.2659108534 | D46: 0.2299239928 | E46: 0.1738417983 | F46: 0.1275935709 | G46: 0.1156494619 | H46: 0.1432343288 | I46: 0.157231433 | J46: 0.1671197851 | K46: 0.1487763246 | L46: 0.3139076601 | M46: 0.3539203174 | N46: 0.3795031429 | O46: 0.3579575531 | P46: 0.3273416401
A47: Total Number of Dispositions CFY | C47: 13975098 | D47: 13937437 | E47: 13924355 | F47: 15881916 | G47: 13347579 | H47: 13998683 | I47: 13302584 | J47: 13715886 | K47: 12996165 | L47: 14479461 | M47: 13421146 | N47: 2818650 | O47: 5741264 | P47: 8739216
A48: Total Number of Claims CFY | C48: 2645749 | D48: 2657153 | E48: 2817615 | F48: 2660622 | G48: 2787989 | H48: 2616984 | I48: 2455606 | J48: 2288900 | K48: 1872438 | L48: 1933887 | M48: 2015989 | N48: 362139 | O48: 892463 | P48: 1394258
A49: Total Claims Per Disposition CFY | C49: 0.1893188155 | D49: 0.1906486106 | E49: 0.2023515631 | F49: 0.1675252533 | G49: 0.2088760067 | H49: 0.1869450148 | I49: 0.1845961657 | J49: 0.1668794856 | K49: 0.1440761948 | L49: 0.1335607037 | M49: 0.1502099001 | N49: 0.1284795913 | O49: 0.155447128 | P49: 0.1595403981
A50: Total Number of Collections CFY | C50: 1126195 | D50: 1154614 | E50: 1250384 | F50: 1191903 | G50: 1154685 | H50: 1092032 | I50: 936677 | J50: 827209 | K50: 680608 | L50: 461699 | M50: 620213 | N50: 1354646 | O50: 221630 | P50: 408483
A51: Total Avg Collection per Claim CFY | C51: 103.055489 | D51: 122.0135622 | E51: 124.0230085 | F51: 114.1077269 | G51: 105.6331309 | H51: 103.9656568 | I51: 104.7987849 | J51: 102.5210142 | K51: 117.7581637 | L51: 127.1169293 | M51: 134.7277955 | N51: 3.551901449 | O51: 101.1393207 | P51: 127.4538315
A52: Total Amount Collected CFY | C52: 116060576.4 | D52: 140878567.1 | E52: 155076385.5 | F52: 136005342 | G52: 121972991.7 | H52: 113533824.1 | I52: 98162611.49 | J52: 84806305.64 | K52: 80147148.28 | L52: 58689759.15 | M52: 83559930.24 | N52: 4811569.09 | O52: 22415507.64 | P52: 52062723.44
A53: Total Amount Billed CFY | C53: 409634682.4 | D53: 474428840 | E53: 495990450.3 | F53: 401136936.3 | G53: 380958006.1 | H53: 362942341.3 | I53: 326361589.6 | J53: 307467342.7 | K53: 276602615.4 | L53: 326429546.4 | M53: 305017661 | N53: 41894034.53 | O53: 124150897.2 | P53: 204554118
A54: Total Collected to Billed Ratio CFY | C54: 0.2833270263 | D54: 0.2969435143 | E54: 0.3126600228 | F54: 0.3390496603 | G54: 0.3201743756 | H54: 0.3128150431 | I54: 0.3007786903 | J54: 0.2758221569 | K54: 0.2897555692 | L54: 0.1797930359 | M54: 0.2739511213 | N54: 0.1148509363 | O54: 0.1805505086 | P54: 0.2545180902
A55: Total Amount Collected CFY for AFY | C55: 159731055 | D55: 210238472 | E55: 240765227.5 | F55: 220083587.2 | G55: 190548897.3 | H55: 168114351.8 | I55: 154477274.4 | J55: 135280226.3 | K55: 130297450.3 | L55: 102301436.5 | M55: 143696473.9 | N55: 36231019.76 | O55: 64737996.25 | P55: 102565617.1
A56: Total Amount Collected AFY | C56: 328949207.8 | D56: 433598427.5 | E56: 560196979.5 | F56: 590746220.2 | G56: 560944222.2 | H56: 485247450.8 | I56: 439618953.8 | J56: 400701563.9 | K56: 361936286.5 | L56: 325745279.4 | M56: 320294396.4 | N56: 233858556.5 | O56: 266604966.5 | P56: 303847893.6
A57: Total Amount Billed CFY-PY2 | C57: 957910067.6 | D57: 1257481893 | E57: 1540216649 | F57: 1513226473 | G57: 1421502131 | H57: 1251582897 | I57: 1158688494 | J57: 1105383060 | K57: 1009316646 | L57: 1075297744 | M57: 1019560230 | N57: 733965064.1 | O57: 840116440.3 | P57: 918988599.3
A58: Total Collected to Billed Ratio CFY-PY2 | C58: 0.3434030176 | D58: 0.3448148478 | E58: 0.3637131048 | F58: 0.3903885049 | G58: 0.3946137049 | H58: 0.3877070003 | I58: 0.379410822 | J58: 0.362500185 | K58: 0.3585953804 | L58: 0.3029349604 | M58: 0.3141495588 | N58: 0.318623553 | O58: 0.317342875 | P58: 0.3306329304
A59: Total Closed Claims CFY | C59: 118986243.6 | D59: 130085258.5 | E59: 161591036.7 | F59: 141039031.1 | G59: 139694079.7 | H59: 122096058.5 | I59: 119130767 | J59: 98192154.53 | K59: 88510716.77 | L59: 67074086.98 | M59: 66895802.89 | N59: 3114070.54 | O59: 17008393.74 | P59: 42363861.37
A60: Total Closed to Billed Ratio CFY | C60: 0.2904691636 | D60: 0.2741934038 | E60: 0.3257946532 | F60: 0.3515982157 | G60: 0.3666915447 | H60: 0.3364062129 | I60: 0.3650269234 | J60: 0.3193579965 | K60: 0.319992335 | L60: 0.2054779898 | M60: 0.2193178017 | N60: 0.07433207556 | O60: 0.1369977513 | P60: 0.2071034394
A61: Total Closed Claims CFY-PY2 | C61: 371623183.4 | D61: 514805564.3 | E61: 681105468.1 | F61: 707260688.2 | G61: 684298801.6 | H61: 583098707.7 | I61: 541079701.1 | J61: 512502385.6 | K61: 489904947.7 | L61: 423683381.2 | M61: 371126859.4 | N61: 246691467 | O61: 292095818.5 | P61: 346206512.2
A62: Total Closed to Billed CFY-PY2 | C62: 0.3879520594 | D62: 0.4093940177 | E62: 0.4422140668 | F62: 0.4673858811 | G62: 0.4813913302 | H62: 0.4658890026 | I62: 0.4669759854 | J62: 0.4636423372 | K62: 0.4853828081 | L62: 0.3940149448 | M62: 0.3640068027 | N62: 0.3361079145 | O62: 0.3476849213 | P62: 0.3767255791
A63: Total Open Claims CFY | C63: 174587862.4 | D63: 203465014.4 | E63: 179323028 | F63: 124092563.3 | G63: 119290934.6 | H63: 127312458.6 | I63: 109068211.2 | J63: 124468882.5 | K63: 107944750.4 | L63: 200665700.2 | M63: 154561927.8 | N63: 33968394.9 | O63: 84726995.86 | P63: 110127533.2
A64: Total Open to Billed Ratio CFY | C64: 0.4262038101 | D64: 0.4288630818 | E64: 0.361545324 | F64: 0.309352124 | G64: 0.3131340797 | H64: 0.3507787439 | I64: 0.3341943863 | J64: 0.4048198466 | K64: 0.3902520958 | L64: 0.6147289743 | M64: 0.506731077 | N64: 0.8108169882 | O64: 0.6824517401 | P64: 0.5383784704
A65: Total Open Claims CFY-PY2 | C65: 257337676.4 | D65: 309077901 | E65: 298914201.5 | F65: 215219564.3 | G65: 176259106.8 | H65: 183236738.9 | I65: 177989838.6 | J65: 192179110.9 | K65: 157475411.4 | L65: 325869083.3 | M65: 328138974 | N65: 253415040.6 | O65: 281415655.4 | P65: 268934193.5
A66: Total Open to Billed Ratio CFY-PY2 | C66: 0.268644923 | D66: 0.2457911345 | E66: 0.1940728284 | F66: 0.1422256141 | G66: 0.1239949649 | H66: 0.1464039971 | I66: 0.1536131925 | J66: 0.1738574778 | K66: 0.1560218115 | L66: 0.3030500949 | M66: 0.3218436384 | N66: 0.3452685325 | O66: 0.3349722037 | P66: 0.2926414906

Sheet Master Pivot Formulas
A1: Calculated Field
A2: Solve Order | B2: Field | C2: Formula
A3: 1 | B3: Claims Per Disposition | C3: =Number_Claims /Number_Dispositions
A4: 2 | B4: Total collections CFY for AFY | C4: =Amt_Collected_CY +Amt_Collected_CYPY1 +Amt_Collected_CYPY2
A5: 3 | B5: collect/bill CFY | C5: =Amt_Collected_CY /Total_Billed
A6: 4 | B6: collect/bill AFY | C6: = (Amt_Collected_CY +Amt_Collected_CYPY1 +Amt_Collected_CYPY2 +Amt_Collected_PY2PY2 +Amt_Collected_PY1PY2 +Amt_Collected_PY1PY1 )/(Total_Billed +Total_BilledPY1 +Total_BilledPY2 )
A7: 5 | B7: Closed/Billed CFY | C7: =Adjs_And_Refunds /Total_Billed
A8: 6 | B8: open/billed | C8: =Amt_Uncollected /Total_Billed
A9: 7 | B9: closed claims all years | C9: =Adjs_And_Refunds +Adjs_And_RefundsPY1 +Adjs_And_RefundsPY2
A10: 8 | B10: closed to billed all years | C10: = (Adjs_And_Refunds +Adjs_And_RefundsPY1 +Adjs_And_RefundsPY2 )/(Total_Billed +Total_BilledPY1 +Total_BilledPY2 )
A11: 9 | B11: Open Claims All Years | C11: =Amt_Uncollected +Amt_UncollectedPY1 +Amt_UncollectedPY2
A12: 10 | B12: Open to Billed Ratio All Years | C12: = (Amt_Uncollected +Amt_UncollectedPY1 +Amt_UncollectedPY2 )/(Total_Billed +Total_BilledPY1 +Total_BilledPY2 )
A13: 11 | B13: Amount Billed All Years | C13: = (Total_Billed +Total_BilledPY1+Total_BilledPY2 )
A14: 12 | B14: Avg Amount Coll per Claim CFY | C14: =Amt_Collected_CY /Number_Collections
A15: 13 | B15: Total collections AFY | C15: =Amt_Collected_CY+Amt_Collected_CYPY1+Amt_Collected_CYPY2+Amt_Collected_PY1PY1 +Amt_Collected_PY1PY2 +Amt_Collected_PY2PY2
A17: Calculated Item
A18: Solve Order | B18: Item | C18: Formula
A21: Note: | B21: When a cell is updated by more than one formula,
B22: the value is set by the formula with the last solve order.
B24: To change formula solve orders,
B25: use the Solve Order command on the PivotTable command bar.

Sheet Bill vs Collect Pivot Table
A1: Amount Collected CFY for CFY thru PY2 is amount collected CFY for CFY, PY1, and PY2
A2: Sum of Amount Collected for PY1 is amount collected CFY for PY1 and PY1 for PY1
A3: Sum of Amount Collected for PY2 is amount collected CFY for PY2 plus PY1 for PY2 and PY2 for PY2
A5: Service | B5: (All)
A6: Region | B6: (All)
A7: DMIS Name | B7: (All)
C9: Fiscal Year
A10: Patient Type | B10: Data | C10: FY10, 4th Q | D10: FY11, 4th Q | E10: FY12, 4th Q | F10: FY13, 4th Q | G10: FY14, 4th Q | H10: FY15, 4th Q | I10: FY16, 4th Q | J10: FY17, 4th Q | K10: FY18, 1st Q | L10: FY18, 2nd Q | M10: FY18, 3rd Q
A11: Inpatient | B11: Amount Billed CFY thru PY2 | C11: 323690052.1 | D11: 300386172.2 | E11: 284390967.2 | F11: 265065583.5 | G11: 275032271.6 | H11: 264829781 | I11: 352840767.3 | J11: 285032743.9 | K11: 166899890.3 | L11: 190776595.2 | M11: 208565676.2
B12: Amount Collected CFY for CFY thru PY2 | C12: 45575060.07 | D12: 37929769.39 | E12: 37385484.9 | F12: 36069226.69 | G12: 33577315.39 | H12: 39286697.39 | I12: 34952399.47 | J12: 37276723.45 | K12: 8648582.45 | L12: 14865736.36 | M12: 27202731.08
B13: Amount Billed CFY | C13: 99528740.13 | D13: 91026226.53 | E13: 87178334.47 | F13: 77151879.94 | G13: 81804933.51 | H13: 83887371.94 | I13: 103753006.3 | J13: 58724018.59 | K13: 0 | L13: 21109405.23 | M13: 37993840.81
B14: Amount Collected for CFY | C14: 30493423 | D14: 25132817.15 | E14: 25053546.03 | F14: 22056329.92 | G14: 17538875.19 | H14: 22011182.13 | I14: 16209807.18 | J14: 18780091.79 | K14: 0 | L14: 1370272.14 | M14: 10754958.67
B15: Sum of Total_BilledPY1 | C15: 108644766.9 | D15: 102653747.7 | E15: 92282110.8 | F15: 96383281.7 | G15: 96540983.78 | H15: 89107654.55 | I15: 126183216.8 | J15: 107082065.8 | K15: 72266171.9 | L15: 74962255.3 | M15: 75960097.99
B16: Sum of Amount Collected for PY1 | C16: 42545237.16 | D16: 42753104.06 | E16: 35949849.58 | F16: 38690335.94 | G16: 36980169.84 | H16: 33597029.37 | I16: 43293378.58 | J16: 34241456.67 | K16: 27533897.41 | L16: 32020143.58 | M16: 34905007.62
B17: Sum of Total_BilledPY2 | C17: 115516545 | D17: 106706198 | E17: 104930522 | F17: 91530421.9 | G17: 96686354.32 | H17: 91834754.54 | I17: 122904544.3 | J17: 119226659.4 | K17: 94633718.37 | L17: 94704934.65 | M17: 94611737.41
B18: Sum of Amount Collected for PY2 | C18: 46688951.22 | D18: 42492495.24 | E18: 43836665.22 | F18: 36284997.28 | G18: 39791704.52 | H18: 37819782.6 | I18: 43784723.72 | J18: 44170320.44 | K18: 34143406.27 | L18: 34478800.1 | M18: 34574076.09
A19: Outpatient | B19: Amount Billed CFY thru PY2 | C19: 1189536421 | D19: 1121115958 | E19: 967191930.1 | F19: 893622910 | G19: 830350788.8 | H19: 744486864.6 | I19: 722456976.5 | J19: 734527485.9 | K19: 567065173.8 | L19: 649339845.1 | M19: 710422923.1
B20: Amount Collected CFY for CFY thru PY2 | C20: 174508527.2 | D20: 152619128 | E20: 130728866.9 | F20: 118408047.7 | G20: 101702910.9 | H20: 91010752.9 | I20: 67349036.99 | J20: 106419750.5 | K20: 27582437.31 | L20: 49872259.89 | M20: 75362886.01
B21: Amount Billed CFY | C21: 301608196.2 | D21: 289931779.5 | E21: 275764006.8 | F21: 249209709.7 | G21: 225662409.2 | H21: 192715243.5 | I21: 222676540.1 | J21: 246293642.4 | K21: 41894034.53 | L21: 103041492 | M21: 166560277.2
B22: Amount Collected for CFY | C22: 105511919 | D22: 96840174.58 | E22: 88480278.11 | F22: 76106281.57 | G22: 67267430.45 | H22: 58135966.15 | I22: 42479951.97 | J22: 64779838.45 | K22: 4811569.09 | L22: 21045235.5 | M22: 41307764.77
B23: Sum of Total_BilledPY1 | C23: 453491558.8 | D23: 362769862.3 | E23: 327603675.4 | F23: 315248974.8 | G23: 288700091.9 | H23: 258995433 | I23: 241972983.3 | J23: 256080783 | K23: 266783830.3 | L23: 280814090.3 | M23: 280300321.3
B24: Sum of Amount Collected for PY1 | C24: 190544240.7 | D24: 155334234.1 | E24: 136227974.2 | F24: 128685881 | G24: 108858450.9 | H24: 98906073.55 | I24: 81026539.95 | J24: 78969055.13 | K24: 86231088.95 | L24: 93672068.54 | M24: 98225507.83
B25: Sum of Total_BilledPY2 | C25: 434436665.7 | D25: 468414316.6 | E25: 363824247.9 | F25: 329164225.5 | G25: 315988287.7 | H25: 292776188.1 | I25: 257807453.2 | J25: 232153060.6 | K25: 258387309 | L25: 265484262.8 | M25: 263562324.6
B26: Sum of Amount Collected for PY2 | C26: 174962449.1 | D26: 198391397.1 | E26: 155699137.6 | F26: 137795128.1 | G26: 130264933 | H26: 111466252.7 | I26: 98950878.02 | J26: 79353633.91 | K26: 81138594.75 | L26: 84018446.63 | M26: 84080578.58
A27: Total Amount Billed CFY thru PY2 | C27: 1513226473 | D27: 1421502131 | E27: 1251582897 | F27: 1158688494 | G27: 1105383060 | H27: 1009316646 | I27: 1075297744 | J27: 1019560230 | K27: 733965064.1 | L27: 840116440.3 | M27: 918988599.3
A28: Total Amount Collected CFY for CFY thru PY2 | C28: 220083587.2 | D28: 190548897.3 | E28: 168114351.8 | F28: 154477274.4 | G28: 135280226.3 | H28: 130297450.3 | I28: 102301436.5 | J28: 143696473.9 | K28: 36231019.76 | L28: 64737996.25 | M28: 102565617.1
A29: Total Amount Billed CFY | C29: 401136936.3 | D29: 380958006.1 | E29: 362942341.3 | F29: 326361589.6 | G29: 307467342.7 | H29: 276602615.4 | I29: 326429546.4 | J29: 305017661 | K29: 41894034.53 | L29: 124150897.2 | M29: 204554118
A30: Total Amount Collected for CFY | C30: 136005342 | D30: 121972991.7 | E30: 113533824.1 | F30: 98162611.49 | G30: 84806305.64 | H30: 80147148.28 | I30: 58689759.15 | J30: 83559930.24 | K30: 4811569.09 | L30: 22415507.64 | M30: 52062723.44
A31: Total Sum of Total_BilledPY1 | C31: 562136325.7 | D31: 465423610 | E31: 419885786.2 | F31: 411632256.5 | G31: 385241075.7 | H31: 348103087.5 | I31: 368156200.1 | J31: 363162848.8 | K31: 339050002.2 | L31: 355776345.6 | M31: 356260419.3
A32: Total Sum of Amount Collected for PY1 | C32: 233089477.9 | D32: 198087338.1 | E32: 172177823.8 | F32: 167376216.9 | G32: 145838620.7 | H32: 132503102.9 | I32: 124319918.5 | J32: 113210511.8 | K32: 113764986.4 | L32: 125692212.1 | M32: 133130515.4
A33: Total Sum of Total_BilledPY2 | C33: 549953210.7 | D33: 575120514.5 | E33: 468754769.8 | F33: 420694647.4 | G33: 412674642 | H33: 384610942.7 | I33: 380711997.4 | J33: 351379720 | K33: 353021027.3 | L33: 360189197.5 | M33: 358174062
A34: Total Sum of Amount Collected for PY2 | C34: 221651400.3 | D34: 240883892.4 | E34: 199535802.8 | F34: 174080125.4 | G34: 170056637.6 | H34: 149286035.3 | I34: 142735601.7 | J34: 123523954.4 | K34: 115282001 | L34: 118497246.7 | M34: 118654654.7
E37: Collect/Bill | G37: Collect/Bill | I37: Collect/Bill
C38: Inpatient | D38: FY00 | E38: =C$14/C$13 -> 0.3063780669 | F38: CFY | G38: =D$16/D$15 -> 0.4164787453 | H38: PY1 | I38: =E$18/E$17 -> 0.4177684853 | J38: PY2
D39: FY01 | E39: =D$14/D$13 -> 0.2761052293 | F39: CFY | G39: =E$16/E$15 -> 0.389564665 | H39: PY1 | I39: =F$18/F$17 -> 0.3964255438 | J39: PY2
D40: FY02 | E40: =E$14/E$13 -> 0.2873827102 | F40: CFY | G40: =F$16/F$15 -> 0.4014216497 | H40: PY1 | I40: =G$18/G$17 -> 0.4115545032 | J40: PY2
D41: FY03 | E41: =F$14/F$13 -> 0.2858819505 | F41: CFY | G41: =G$16/G$15 -> 0.3830515123 | H41: PY1 | I41: =H$18/H$17 -> 0.4118242902 | J41: PY2
C42: Inpatient | D42: FY10 | E42: =$C14/C13 -> 0.3063780669 | F42: CFY | G42: =$D16/$D15 -> 0.4164787453 | H42: PYI | I42: =$E18/$E17 -> 0.4177684853 | J42: PY2
D43: FY11 | E43: =$D14/$D13 -> 0.2761052293 | F43: CFY | G43: =$E16/$E15 -> 0.389564665 | H43: PY1 | I43: =H18/H17 -> 0.4118242902 | J43: PY2
D44: FY12 | E44: =$E14/$E13 -> 0.2873827102 | F44: CFY | G44: =F16/F15 -> 0.4014216497 | H44: PY1 | I44: =$G18/$G17 -> 0.4115545032 | J44: PY2
D45: FY13 | E45: =$F14/$F13 -> 0.2858819505 | F45: CFY | G45: =$G16/$G15 -> 0.3830515123 | H45: PY1 | I45: =$H18/$H17 -> 0.4118242902 | J45: PY3
D46: FY14 | E46: =G14/G13 -> 0.2143987464 | F46: CFY | G46: =$H16/$H15 -> 0.3770386454 | H46: PY1 | I46: =$I18/$I17 -> 0.3562498358 | J46: PY2
D47: FY15 | E47: =$H14/$H13 -> 0.2623896973 | F47: CFY | G47: =$I16/$I15 -> 0.3430993415 | H47: PY1 | I47: =$J18/$J17 -> 0.3704735221 | J47: PY2
D48: FY16 | E48: =I$14/I$13 -> 0.1562345783 | F48: CFY | G48: =$J16/$J15 -> 0.3197683608 | H48: PY1 | I48: =$M18/$M17 -> 0.3654311509 | J48: PY2
D49: FY17 | E49: =J$14/J$13 -> 0.3198025653 | F49: CFY | G49: =$M16/$M15 -> 0.459517675 | H49: PY1
D50: FY18* | E50: =M$14/M$13 -> 0.2830711094 | F50: CFY
C52: Outpatient | D52: FY10 | E52: =$C22/$C21 -> 0.3498310733 | F52: CFY | G52: =$D24/$D23 -> 0.4281894673 | H52: PY1 | I52: =E$26/$E25 -> 0.4279515138 | J52: PY2
D53: FY11 | E53: =D22/D21 -> 0.33401021 | F53: CFY | G53: =E$32/E$31 -> 0.4100587098 | H53: PY1 | I53: =$F26/$F25 -> 0.4186212154 | J53: PY2
D54: FY12 | E54: =$E22/$E21 -> 0.3208550642 | F54: CFY | G54: =F$32/F$31 -> 0.4066158914 | H54: PY1 | I54: =$G26/$G25 -> 0.4122460804 | J54: PY2
D55: FY13 | E55: =F$22/F$21 -> 0.305390515 | F55: CFY | G55: =G$24/G$23 -> 0.3770641364 | H55: PY1 | I55: =$H26/$H25 -> 0.3807217158 | J55: PY2
D56: FY14 | E56: =G$22/G$21 -> 0.2980887721 | F56: CFY | G56: =$H24/$H23 -> 0.3818834657 | H56: PY1 | I56: =$I26/$I25 -> 0.3838169797 | J56: PY2
D57: FY15 | E57: =H$22/H$21 -> 0.3016677098 | F57: CFY | G57: =$I24/$I23 -> 0.3348577963 | H57: PY1 | I57: =$J26/J$25 -> 0.3418160145 | J57: PY2
D58: FY16 | E58: =I$22/I$21 -> 0.1907697684 | F58: CFY | G58: =$J24/J$23 -> 0.3083755611 | H58: PY1 | I58: =$M26/M$25 -> 0.3190159242 | J58: PY2
D59: FY17 | E59: =J$22/J$21 -> 0.2630187195 | F59: CFY | G59: =$M24/M$23 -> 0.3504295228 | H59: PY1
D60: FY14 | E60: =J$22/J$21 -> 0.2630187195 | F60: CFY | G60: =L$24/L$23 -> 0.3335732493 | H60: PY1
C61: Combined | D61: FY15 | E61: =J$22/J$21 -> 0.2630187195 | F61: CFY | H61: PY1
D62: FY16 | E62: =J$22/J$21 -> 0.2630187195 | F62: CFY | H62: PY1
E63: =J$22/J$21 -> 0.2630187195 | H63: PY1
D64: FY18 | E64: =M$22/M$21 -> 0.2480048993
C66: Combined | D66: FY10 | E66: =$C30/$C29 -> 0.3390496603 | F66: CFY | G66: =$D32/$D31 -> 0.4256065526 | H66: PY1 | I66: =$E34/$E33 -> 0.4256720479 | J66: PY2
D67: FY11 | E67: =D30/D29 -> 0.3201743756 | F67: CFY | G67: =$E32/$E31 -> 0.4100587098 | H67: PY1 | I67: =$F34/$F33 -> 0.4137921091 | J67: PY2
D68: FY12 | E68: =$E30/$E29 -> 0.3128150431 | F68: CFY | G68: =$F32/$F31 -> 0.4066158914 | H68: PY1 | I68: =G$34/G$33 -> 0.4120840494 | J68: PY2
D69: FY13 | E69: =F$30/F$29 -> 0.3007786903 | F69: CFY | G69: =G$32/G$31 -> 0.3785645662 | H69: PY1 | I69: =$H34/$H33 -> 0.3881481745 | J69: PY2
D70: FY14 | E70: =$G30/$G29 -> 0.2758221569 | F70: CFY | G70: =$H32/$H31 -> 0.3806432855 | H70: PY1 | I70: =$I34/$I33 -> 0.37491753 | J70: PY2
D71: FY15 | E71: =$H30/$H29 -> 0.2897555692 | F71: CFY | G71: =$I32/$I31 -> 0.3376825339 | H71: PY1 | I71: =$J34/$J33 -> 0.3515397939 | J71: PY2
D72: FY16 | E72: =$I30/$I29 -> 0.1797930359 | F72: CFY | G72: =$J32/$J31 -> 0.3117348379 | H72: PY1 | I72: =$M34/$M33 -> 0.331276514 | J72: PY2
D73: FY17 | E73: =$J30/$J29 -> 0.2739511213 | F73: CFY | G73: =$M32/$M31 -> 0.3736887632 | H73: PY1
D74: FY18* | E74: =$M30/$M29 -> 0.2545180902 | F74: CFY
D78: * Imcomplete data

Sheet BillvColl Formulas
A1: Calculated Field
A2: Solve Order | B2: Field | C2: Formula
A3: 1 | B3: Claims Per Disposition | C3: =Number_Claims /Number_Dispositions
A4: 2 | B4: Total collections CFY for AFY | C4: =Amt_Collected_CY +Amt_Collected_CYPY1 +Amt_Collected_CYPY2
A5: 3 | B5: collect/bill CFY | C5: =Amt_Collected_CY /Total_Billed
A6: 4 | B6: collect/bill AFY | C6: = (Amt_Collected_CY +Amt_Collected_CYPY1 +Amt_Collected_CYPY2 +Amt_Collected_PY2PY2 +Amt_Collected_PY1PY2 +Amt_Collected_PY1PY1 )/(Total_Billed +Total_BilledPY1 +Total_BilledPY2 )
A7: 5 | B7: Closed/Billed CFY | C7: =Adjs_And_Refunds /Total_Billed
A8: 6 | B8: open/billed | C8: =Amt_Uncollected /Total_Billed
A9: 7 | B9: closed claims all years | C9: =Adjs_And_Refunds +Adjs_And_RefundsPY1 +Adjs_And_RefundsPY2
A10: 8 | B10: closed to billed all years | C10: = (Adjs_And_Refunds +Adjs_And_RefundsPY1 +Adjs_And_RefundsPY2 )/(Total_Billed +Total_BilledPY1 +Total_BilledPY2 )
A11: 9 | B11: Open Claims All Years | C11: =Amt_Uncollected +Amt_UncollectedPY1 +Amt_UncollectedPY2
A12: 10 | B12: Open to Billed Ratio All Years | C12: = (Amt_Uncollected +Amt_UncollectedPY1 +Amt_UncollectedPY2 )/(Total_Billed +Total_BilledPY1 +Total_BilledPY2 )
A13: 11 | B13: Amount Billed All Years | C13: = (Total_Billed +Total_BilledPY1+Total_BilledPY2 )
A14: 12 | B14: Avg Amount Coll per Claim CFY | C14: =Amt_Collected_CY /Number_Collections
A15: 13 | B15: Amount Collected for PY1 | C15: =Amt_Collected_CYPY1 +Amt_Collected_PY1PY1
A16: 14 | B16: Amount Collected for PY2 | C16: =Amt_Collected_CYPY2 +Amt_Collected_PY1PY2 +Amt_Collected_PY2PY2
A18: Calculated Item
A19: Solve Order | B19: Item | C19: Formula
A22: Note: | B22: When a cell is updated by more than one formula,
B23: the value is set by the formula with the last solve order.
B25: To change formula solve orders,
B26: use the Solve Order command on the PivotTable command bar.

Sheet Raw Data Table
A1: DMIS_ID | B1: DMIS_Name | C1: Region | D1: Service | E1: Fiscal_Year | F1: Patient_Type | G1: Number_Dispositions | H1: Number_Claims | I1: Number_Collections | J1: Total_Billed | K1: Total_BilledPY1 | L1: Total_BilledPY2 | M1: Adjs_And_Refunds | N1: Amt_Collected_PY2PY2 | O1: Amt_Collected_PY1PY2 | P1: Amt_Collected_PY1PY1 | Q1: Amt_Collected_CY | R1: Amt_Collected_CYPY1 | S1: Amt_Collected_CYPY2 | T1: Amt_Uncollected | U1: Adjs_And_RefundsPY2 | V1: Adjs_And_RefundsPY1 | W1: Amt_UncollectedPY1 | X1: Amt_UncollectedPY2
A2: 0003 | B2: Ft. Rucker (Lyster Army Health Clinic) | C2: RHC-A | D2: Army | E2: FY00, 1st Q | F2: Inpatient | G2: 37 | H2: 5 | I2: 4 | J2: 79139.93 | K2: 113867.23 | L2: 81654.09 | M2: 21263.01 | N2: 37420.04 | O2: 6346.61 | P2: 92201.35 | Q2: 48059.55 | R2: 768 | S2: 0 | T2: 9817.37 | U2: 37887.44 | V2: 17596.05 | W2: 3301.83 | X2: 0
A3: 0004 | B3: Maxwell AFB (42nd Medical Group) | C3: AETC | D3: Air Force | E3: FY00, 1st Q | F3: Inpatient | G3: 0 | H3: 0 | I3: 0 | J3: 0 | K3: 28290.16 | L3: 71913.99 | M3: 0 | N3: 1505.54 | O3: 9192.33 | P3: 0 | Q3: 0 | R3: 0 | S3: 0 | T3: 0 | U3: 38536.25 | V3: 0 | W3: 28290.16 | X3: 22679.87
A4: 0005 | B4: Ft. Wainwright (Bassett Army Community Hospital) | C4: RHC-P | D4: Army | E4: FY00, 1st Q | F4: Inpatient | G4: 302 | H4: 6 | I4: 0 | J4: 34464.41 | K4: 410957.54 | L4: 332060 | M4: 0 | N4: 218883.41 | O4: 38726.78 | P4: 196620.13 | Q4: 0 | R4: 35063.47 | S4: 107.1 | T4: 34464.41 | U4: 60619.54 | V4: 135713.87 | W4: 43560.07 | X4: 13723.17
A5: 0006 | B5: Elmendorf AFB (3rd Medical group) | C5: PACAF (Pacific Air Force) | D5: Air Force | E5: FY00, 1st Q | F5: Inpatient | G5: 635 | H5: 26 | I5: 4 | J5: 123528.23 | K5: 944290.66 | L5: 1415074.44 | M5: 3516.49 | N5: 608138.73 | O5: 168736.88 | P5: 439414.79 | Q5: 10269.22 | R5: 120154.89 | S5: -741 | T5: 109742.52 | U5: 637504.55 | V5: 291089.92 | W5: 93631.06 | X5: 1435.28
A6: 0009 | B6: Luke AFB (56th Medical Group) | C6: AETC | D6: Air Force | E6: FY00, 1st Q | F6: Inpatient | G6: 377 | H6: 5 | I6: 1 | J6: 29120.99 | K6: 99025.57 | L6: 130358.86 | M6: 5198.06 | N6: 86593.86 | O6: 5780.26 | P6: 59828.59 | Q6: 5000 | R6: 13750.9 | S6: 0 | T6: 18922.93 | U6: 35648.7 | V6: 25446.08 | W6: 0 | X6: 2336.26
A7: 0014 | B7: Travis AFB (60th Medical Group) | C7: AMC | D7: Air Force | E7: FY00, 1st Q | F7: Inpatient | G7: 1158 | H7: 147 | I7: 16 | J7: 1474621.58 | K7: 3211448.02 | L7: 3416605 | M7: 714582.6 | N7: 601383 | O7: 408190 | P7: 614087 | Q7: 14231.43 | R7: 174190.62 | S7: 15029.84 | T7: 745807.55 | U7: 2384637.11 | V7: 1856607.3 | W7: 566563.1 | X7: 7365.05
A8: 0018 | B8: Vandenberg AFB (30th Medical Group) | C8: AFSPC | D8: Air Force | E8: FY00, 1st Q | F8: Inpatient | G8: 0 | H8: 0 | I8: 0 | J8: 0 | K8: 14774.4 | L8: 99511.17 | M8: 0 | N8: 20843.91 | O8: 5925.38 | P8: 4328.17 | Q8: 0 | R8: 0 | S8: 0 | T8: 0 | U8: 72741.88 | V8: 10446.23 | W8: 0 | X8: 0
A9: 0024 | B9: NH Camp Pendelton | C9: Navy Medicine West | D9: Navy | E9: FY00, 1st Q | F9: Inpatient | G9: 1158 | H9: 22 | I9: 4 | J9: 130569.43 | K9: 605181.04 | L9: 846607.11 | M9: 75597.77 | N9: 151467.56 | O9: 52708.39 | P9: 140687.15 | Q9: 3209.06 | R9: 58641.99 | S9: 0 | T9: 51762.6 | U9: 642431.16 | V9: 402640.93 | W9: 3210.97 | X9: 0
A10: 0028 | B10: NHC Lemoore | C10: Navy Medicine West | D10: Navy | E10: FY00, 1st Q | F10: Inpatient | G10: 147 | H10: 2 | I10: 2 | J10: 12891.33 | K10: 56674.18 | L10: 83264.63 | M10: 1541.49 | N10: 22743.7 | O10: 3036.43 | P10: 23564.72 | Q10: 6719.26 | R10: 8733.06 | S10: 0 | T10: 4630.58 | U10: 57484.5 | V10: 19761.37 | W10: 4615.03 | X10: 0
A11: 0029 | B11: NMC San Diego | C11: Navy Medicine West | D11: Navy | E11: FY00, 1st Q | F11: Inpatient | G11: 4081 | H11: 100 | I11: 2 | J11: 1479043.66 | K11: 8787164.16 | L11: 10465219.57 | M11: 1061835.61 | N11: 2958989.08 | O11: 972894.95 | P11: 2036353.38 | Q11: 19250.85 | R11: 460883.36 | S11: 66322.83 | T11: 397957.2 | U11: 6461489.81 | V11: 6218768.06 | W11: 71159.36 | X11: 5522.9
A12: 0030 | B12: NH 29 Palms | C12: Navy Medicine West | D12: Navy | E12: FY00, 1st Q | F12: Inpatient | G12: 319 | H12: 0 | I12: 0 | J12: 0 | K12: 139858.12 | L12: 132639.65 | M12: 0 | N12: 43501.02 | O12: 7520.34 | P12: 42185.72 | Q12: 0 | R12: 2185.41 | S12: 0 | T12: 0 | U12: 81618.29 | V12: 92813.63 | W12: 2673.36 | X12: 0
A13: 0032 | B13: Ft. Carson (Evans Army Community Hospital) | C13: RHC-C | D13: Army | E13: FY00, 1st Q | F13: Inpatient | G13: 908 | H13: 14 | I13: 0 | J13: 130894.88 | K13: 420501.58 | L13: 899430.31 | M13: 49559.58 | N13: 346526.55 | O13: 79672.12 | P13: 157584 | Q13: 0 | R13: 34885.51 | S13: 0 | T13: 81335.3 | U13: 456778.9 | V13: 214868.26 | W13: 13163.81 | X13: 16452.74
A14: 0033 | B14: USAF Academy (10th Medical Group) | C14: United States Air Force Academy (USAFA) | D14: Air Force | E14: FY00, 1st Q | F14: Inpatient | G14: 272 | H14: 65 | I14: 0 | J14: 464688.18 | K14: 659489.25 | L14: 946816.79 | M14: 365553.04 | N14: 169499.89 | O14: 32845.36 | P14: 148347.03 | Q14: 0 | R14: 85179.44 | S14: 0 | T14: 99135.14 | U14: 744471.54 | V14: 393890.51 | W14: 32072.27 | X14: 0
A15: 0037 | B15: Washington D.C. (Walter Reed Army Medical Center) | C15: Northern Regional Medical Command (NRMC) | D15: Army | E15: FY00, 1st Q | F15: Inpatient | G15: 1928 | H15: 257 | I15: 81 | J15: 4504025.39 | K15: 17260332.06 | L15: 21148276.06 | M15: 2255447.14 | N15: 5742252.46 | O15: 1677668.78 | P15: 3175534.58 | Q15: 281772.04 | R15: 914498.98 | S15: 2850.98 | T15: 1966806.21 | U15: 10831134.91 | V15: 8228482.34 | W15: 4941816.16 | X15: 2894368.93
A16: 0038 | B16: NH Pensacola | C16: Navy Medicine East | D16: Navy | E16: FY00, 1st Q | F16: Inpatient | G16: 635 | H16: 53 | I16: 12 | J16: 402498.89 | K16: 2442483.87 | L16: 2354697.54 | M16: 230184.86 | N16: 552102.82 | O16: 138249.14 | P16: 544749.18 | Q16: 25462.68 | R16: 106353.68 | S16: 0 | T16: 146851.35 | U16: 1664345.58 | V16: 1760455.67 | W16: 30925.34 | X16: 0
A17: 0039 | B17: NH Jacksonville | C17: Navy Medicine East | D17: Navy | E17: FY00, 1st Q | F17: Inpatient | G17: 854 | H17: 38 | I17: 12 | J17: 254403.94 | K17: 1214800.27 | L17: 929511.95 | M17: 87754.63 | N17: 207465.8 | O17: 221159.45 | P17: 295388.05 | Q17: 25245.68 | R17: 194725.11 | S17: 9154.79 | T17: 141403.63 | U17: 414128.35 | V17: 623332.94 | W17: 101354.17 | X17: 77603.56
A18: 0042 | B18: Eglin AFB (96th Medical Group) | C18: AFMC | D18: Air Force | E18: FY00, 1st Q | F18: Inpatient | G18: 934 | H18: 47 | I18: 7 | J18: 405426.97 | K18: 2714170.82 | L18: 2489321.05 | M18: 40628.86 | N18: 482024.08 | O18: 0 | P18: 511589.94 | Q18: 10228.25 | R18: 0 | S18: 0 | T18: 354569.86 | U18: 1867112.95 | V18: 1907219.2 | W18: 192850.19 | X18: 14830.6
A19: 0043 | B19: Tyndall AFB (325th Medical Group) | C19: ACC | D19: Air Force | E19: FY00, 1st Q | F19: Inpatient | G19: 0 | H19: 0 | I19: 0 | J19: 0 | K19: 43854.13 | L19: 106672.05 | M19: 0 | N19: 59508.16 | O19: 2746.23 | P19: 24683.91 | Q19: 0 | R19: 2815.12 | S19: 0 | T19: 0 | U19: 44417.66 | V19: 16355.1 | W19: 0 | X19: 0
A20: 0045 | B20: MacDill AFB (6th Medical Group) | C20: AMC | D20: Air Force | E20: FY00, 1st Q | F20: Inpatient | G20: 177 | H20: 5 | I20: 0 | J20: 25710.49 | K20: 176781.14 | L20: 192668.42 | M20: 3225.59 | N20: 27185.89 | O20: 26044.7 | P20: 47432.97 | Q20: 0 | R20: 10887.63 | S20: 0 | T20: 22484.9 | U20: 138215.36 | V20: 116059.49 | W20: 2401.05 | X20: 1222.47
A21: 0047 | B21: Ft. Gordon (AMC Eisenhower-Gordon) | C21: RHC-A | D21: Army | E21: FY00, 1st Q | F21: Inpatient | G21: 914 | H21: 135 | I21: 39 | J21: 1359890.84 | K21: 7842270.85 | L21: 8057245.68 | M21: 646497.69 | N21: 2098320.43 | O21: 1244854.42 | P21: 2303862.94 | Q21: 96693.74 | R21: 837017.92 | S21: 7731.05 | T21: 616699.41 | U21: 4682919.57 | V21: 4400834.74 | W21: 300555.25 | X21: 23420.21
A22: 0048 | B22: Ft. Benning (ACH Martin-Benning) | C22: RHC-A | D22: Army | E22: FY00, 1st Q | F22: Inpatient | G22: 853 | H22: 33 | I22: 5 | J22: 235217.11 | K22: 1699062.3 | L22: 2373526.31 | M22: 87900.87 | N22: 623966.36 | O22: 0 | P22: 480886.02 | Q22: 104600.57 | R22: 0 | S22: 0 | T22: 140607.25 | U22: 1373185.51 | V22: 1024370.2 | W22: 49754.39 | X22: 7200.94
A23: 0049 | B23: Ft. Stewart (Winn Army Community Hospital) | C23: RHC-A | D23: Army | E23: FY00, 1st Q | F23: Inpatient | G23: 938 | H23: 34 | I23: 27 | J23: 113524.32 | K23: 482719.73 | L23: 631003.96 | M23: 10728.51 | N23: 298099.6 | O23: 36297.52 | P23: 216797.03 | Q23: 28169.07 | R23: 34589.06 | S23: 0 | T23: 74626.74 | U23: 296606.84 | V23: 231333.64 | W23: 0 | X23: 0
A24: 0052 | B24: Ft. Shafter (Tripler Army Medical Center) | C24: RHC-P | D24: Army | E24: FY00, 1st Q | F24: Inpatient | G24: 2421 | H24: 71 | I24: 1 | J24: 562117.94 | K24: 5009451.51 | L24: 4143893.19 | M24: 857.8 | N24: 1860236.59 | O24: 588831.1 | P24: 1772387.06 | Q24: 7720.13 | R24: 715948.17 | S24: 2144.7 | T24: 553540.01 | U24: 1506778.81 | V24: 1540756.46 | W24: 980359.82 | X24: 185901.99
A25: 0053 | B25: Mountain Home AFB (366th Medical Group) | C25: ACC | D25: Air Force | E25: FY00, 1st Q | F25: Inpatient | G25: 159 | H25: 0 | I25: 0 | J25: 0 | K25: 1880.31 | L25: 78864.52 | M25: 0 | N25: 0 | O25: 25701.62 | P25: 0 | Q25: 0 | R25: 940.16 | S25: 18969.2 | T25: 0 | U25: 34193.7 | V25: 940.15 | W25: 0 | X25: 0
A26: 0055 | B26: Scott AFB (375th Medical Group) | C26: AMC | D26: Air Force | E26: FY00, 1st Q | F26: Inpatient | G26: 350 | H26: 43 | I26: 0 | J26: 343741.1 | K26: 2231185.52 | L26: 3245060.86 | M26: 18257.98 | N26: 803077.45 | O26: 354059.55 | P26: 758343.25 | Q26: 0 | R26: 151201.95 | S26: 0 | T26: 325483.12 | U26: 2087923.86 | V26: 1133070.35 | W26: 188569.97 | X26: 0
A27: 0056 | B27: NHC Great Lakes | C27: Navy Medicine East | D27: Navy | E27: FY00, 1st Q | F27: Inpatient | G27: 76 | H27: 13 | I27: 2 | J27: 64376.8 | K27: 225019.27 | L27: 338639.97 | M27: 26900.01 | N27: 98484.08 | O27: 44375.98 | P27: 59767.48 | Q27: 2045.19 | R27: 25040.12 | S27: 764 | T27: 35431.6 | U27: 195015.91 | V27: 128311.99 | W27: 11899.68 | X27: 0
A28: 0057 | B28: Ft. Riley (Irwin Army Community Hospital) | C28: RHC-C | D28: Army | E28: FY00, 1st Q | F28: Inpatient | G28: 1238 | H28: 43 | I28: 18 | J28: 158386.47 | K28: 343934.11 | L28: 664224.69 | M28: 10131.13 | N28: 334132.22 | O28: 71123.07 | P28: 96857.65 | Q28: 9940.39 | R28: 61396.05 | S28: 0 | T28: 53367.91 | U28: 230847.92 | V28: 159536.05 | W28: 26144.36 | X28: 28121.48
A29: 0060 | B29: Ft. Campbell (Blanchfield Army Comm Hospital) | C29: RHC-A | D29: Army | E29: FY00, 1st Q | F29: Inpatient | G29: 1220 | H29: 27 | I29: 5 | J29: 114630.38 | K29: 472711.4 | L29: 654680.07 | M29: 10232.49 | N29: 301149.33 | O29: 148168 | P29: 276010.63 | Q29: 11580.61 | R29: 34674.21 | S29: 1937.1 | T29: 92817.28 | U29: 203425.64 | V29: 158298.24 | W29: 3728.32 | X29: 0
A30: 0061 | B30: Ft. Knox (Ireland Army Community Hospital) | C30: RHC-A | D30: Army | E30: FY00, 1st Q | F30: Inpatient | G30: 61 | H30: 7 | I30: 0 | J30: 38818.95 | K30: 270367.35 | L30: 361092.32 | M30: 0 | N30: 116663.73 | O30: 60263.38 | P30: 56546.87 | Q30: 0 | R30: 52680.32 | S30: 0 | T30: 38818.95 | U30: 184165.21 | V30: 85097.11 | W30: 76043.05 | X30: 0
A31: 0064 | B31: Ft. Polk (Bayne-Jones Army Community Hospital) | C31: RHC-C | D31: Army | E31: FY00, 1st Q | F31: Inpatient | G31: 1845 | H31: 83 | I31: 49 | J31: 408686.97 | K31: 387195.19 | L31: 446140.03 | M31: 252331.57 | N31: 218240.3 | O31: 62290.65 | P31: 158508.87 | Q31: 116212.56 | R31: 56170.9 | S31: 380.02 | T31: 40142.84 | U31: 149420.89 | V31: 158897.79 | W31: 13617.63 | X31: 15808.17
A32: 0066 | B32: Andrews AFB (79th Medical Group) | C32: AFDW | D32: Air Force | E32: FY00, 1st Q | F32: Inpatient | G32: 932 | H32: 159 | I32: 48 | J32: 1274326.83 | K32: 5140587.19 | L32: 5547918.2 | M32: 626281.68 | N32: 1769880.23 | O32: 405996.94 | P32: 1304250.02 | Q32: 145601.86 | R32: 236303.99 | S32: 3338.52 | T32: 502443.29 | U32: 3361362.39 | V32: 3255605.62 | W32: 344427.56 | X32: 7340.12
A33: 0067 | B33: Walter Reed National Military Medical Center | C33: NCR MD | D33: NCR MD | E33: FY00, 1st Q | F33: Inpatient | G33: 2015 | H33: 232 | I33: 44 | J33: 3077322.28 | K33: 13691656.61 | L33: 20441278.8 | M33: 1411635.25 | N33: 510676.84 | O33: 1381304.65 | P33: 2706779.84 | Q33: 92396.37 | R33: 618099.54 | S33: 37279.03 | T33: 1573290.66 | U33: 13736393.68 | V33: 9185290.22 | W33: 1181487.01 | X33: 179533.6
A34: 0073 | B34: Keesler AFB (81st Medical Group) | C34: AETC | D34: Air Force | E34: FY00, 1st Q | F34: Inpatient | G34: 1183 | H34: 82 | I34: 9 | J34: 1462823.24 | K34: 6198728.03 | L34: 6984157.06 | M34: 160645.59 | N34: 1705919.49 | O34: 619852.15 | P34: 1769391.82 | Q34: 72774.44 | R34: 460112.78 | S34: 32656.43 | T34: 1229403.21 | U34: 4616583.68 | V34: 3789863.29 | W34: 179360.14 | X34: 9145.31
A35: 0075 | B35: Ft. Leonard Wood (Wood Army Community Hospital) | C35: RHC-C | D35: Army | E35: FY00, 1st Q | F35: Inpatient | G35: 337 | H35: 34 | I35: 10 | J35: 212958.92 | K35: 573883.86 | L35: 452278.77 | M35: 92714.53 | N35: 194185.47 | O35: 75534.53 | P35: 252562.54 | Q35: 28346.81 | R35: 63829.94 | S35: 0 | T35: 91897.58 | U35: 182558.77 | V35: 238718.52 | W35: 18772.86 | X35: 0
A36: 0078 | B36: Offutt AFB (55th Medical Group) | C36: ACC | D36: Air Force | E36: FY00, 1st Q | F36: Inpatient | G36: 1675 | H36: 114 | I36: 72 | J36: 713213.52 | K36: 497052.06 | L36: 650493.7 | M36: 324643.31 | N36: 145952.87 | O36: 125189.99 | P36: 156704.67 | Q36: 324643.31 | R36: 290574.89 | S36: 372715.91 | T36: 178789.71 | U36: 372715.91 | V36: 290574.89 | W36: 18414.48 | X36: 2550.48
A37: 0079 | B37: Nellis AFB (99th Medical Group) | C37: ACC | D37: Air Force | E37: FY00, 1st Q | F37: Inpatient | G37: 551 | H37: 36 | I37: 0 | J37: 160051.53 | K37: 859352.76 | L37: 1164434.83 | M37: 19877.79 | N37: 322408.77 | O37: 165821.27 | P37: 252904.11 | Q37: 0 | R37: 81044.27 | S37: 4160.38 | T37: 140173.74 | U37: 619529.66 | V37: 242659.96 | W37: 282744.42 | X37: 27867.55
A38: 0084 | B38: Holloman AFB (49th Medical Group) | C38: ACC | D38: Air Force | E38: FY00, 1st Q | F38: Inpatient | G38: 0 | H38: 0 | I38: 0 | J38: 0 | K38: 0 | L38: 3679.03 | M38: 0 | N38: 0 | O38: 0 | P38: 0 | Q38: 0 | R38: 0 | S38: 764 | T38: 0 | U38: 2915.03 | V38: 0 | W38: 0 | X38: 0
A39: 0089 | B39: Ft. Bragg (Womack Army Medical Center) | C39: RHC-A | D39: Army | E39: FY00, 1st Q | F39: Inpatient | G39: 1979 | H39: 46 | I39: 5 | J39: 628300.89 | K39: 2421739.72 | L39: 2405579.69 | M39: 202476.95 | N39: 829778.99 | O39: 477745.14 | P39: 702642.3 | Q39: 9231.65 | R39: 344925.61 | S39: 17266.53 | T39: 416592.29 | U39: 964931.14 | V39: 1056856.08 | W39: 317315.73 | X39: 115857.89
A40: 0091 | B40: NH Camp Lejeune | C40: Navy Medicine East | D40: Navy | E40: FY00, 1st Q | F40: Inpatient | G40: 900 | H40: 0 | I40: 0 | J40: 0 | K40: 521877.34 | L40: 512403.36 | M40: 0 | N40: 223886.04 | O40: 84428.97 | P40: 195229.16 | Q40: 0 | R40: 67944.5 | S40: 0 | T40: 0 | U40: 202805.11 | V40: 158554.15 | W40: 100149.53 | X40: 1283.24
A41: 0092 | B41: NHC Cherry Point | C41: Navy Medicine East | D41: Navy | E41: FY00, 1st Q | F41: Inpatient | G41: 246 | H41: 4 | I41: 1 | J41: 20064.11 | K41: 140136.75 | L41: 176509.95 | M41: 5651.77 | N41: 92897.49 | O41: 16393.75 | P41: 79336.07 | Q41: 768 | R41: 19327.49 | S41: 0 | T41: 13644.34 | U41: 67218.71 | V41: 36572.82 | W41: 4900.37 | X41: 0
A42: 0093 | B42: Grand Forks AFB (319th Medical Group) | C42: ACC | D42: Air Force | E42: FY00, 1st Q | F42: Inpatient | G42: 0 | H42: 0 | I42: 0 | J42: 0 | K42: 1060.42 | L42: 11441.91 | M42: 0 | N42: 6809.42 | O42: 0 | P42: 0 | Q42: 0 | R42: 0 | S42: 0 | T42: 0 | U42: 2212.93 | V42: 0 | W42: 1060.42 | X42: 2419.56
A43: 0094 | B43: Minot AFB (5th Medical Group) | C43: Air Force Global Strike Command (AFGSC) | D43: Air Force | E43: FY00, 1st Q | F43: Inpatient | G43: 8 | H43: 0 | I43: 0 | J43: 0 | K43: 20352.55 | L43: 52873.57 | M43: 0 | N43: 28977.95 | O43: 7120.54 | P43: 13462.34 | Q43: 0 | R43: 0 | S43: 0 | T43: 0 | U43: 14200.55 | V43: 4547.55 | W43: 2342.66 | X43: 2574.53
A44: 0095 | B44: Wright Patterson AFB (88th Medical Group) | C44: AFMC | D44: Air Force | E44: FY00, 1st Q | F44: Inpatient | G44: 736 | H44: 103 | I44: 11 | J44: 1214902.44 | K44: 7595826.75 | L44: 9710033.59 | M44: 240822.72 | N44: 3089643.35 | O44: 1441146.16 | P44: 2170314.35 | Q44: 43747.78 | R44: 507836.13 | S44: 21486.67 | T44: 930331.94 | U44: 5120632.98 | V44: 4375795.82 | W44: 541880.45 | X44: 37124.49
A45: 0097 | B45: Altus AFB (97th Medical Group) | C45: AETC | D45: Air Force | E45: FY00, 1st Q | F45: Inpatient | G45: 0 | H45: 0 | I45: 0 | J45: 0 | K45: 36404 | L45: 49512 | M45: 0 | N45: 10795 | O45: 18854 | P45: 27024 | Q45: 0 | R45: 0 | S45: 1183 | T45: 0 | U45: 18680 | V45: 9380 | W45: 0 | X45: 0
A46: 0098 | B46: Ft. Sill (Reynolds Army Community Hospital) | C46: RHC-C | D46: Army | E46: FY00, 1st Q | F46: Inpatient | G46: 630 | H46: 2 | I46: 0 | J46: 10986.86 | K46: 226820 | L46: 315887.61 | M46: 0 | N46: 95557.79 | O46: 52782.26 | P46: 64263.7 | Q46: 0 | R46: 13256.29 | S46: 4245.89 | T46: 10986.86 | U46: 147472.01 | V46: 129134.86 | W46: 20165.15 | X46: 15829.66
A47: 0100 | B47: NHC New England | C47: Navy Medicine East | D47: Navy | E47: FY00, 1st Q | F47: Inpatient | G47: 111 | H47: 1 | I47: 0 | J47: 61 | K47: 12261 | L47: 19767 | M47: 0 | N47: 0 | O47: 3945 | P47: 2837 | Q47: 0 | R47: 1142 | S47: 2004 | T47: 61 | U47: 13818 | V47: 7673 | W47: 609 | X47: 0
A48: 0101 | B48: Shaw AFB (20th Medical Group) | C48: ACC | D48: Air Force | E48: FY00, 1st Q | F48: Inpatient | G48: 198 | H48: 1 | I48: 0 | J48: 2867.06 | K48: 142223.6 | L48: 157808.14 | M48: 0 | N48: 0 | O48: 54590.01 | P48: 67395.37 | Q48: 0 | R48: 33734.04 | S48: 39549.13 | T48: 2867.06 | U48: 63669.27 | V48: 27272.03 | W48: 13852.16 | X48: 0
A49: 0104 | B49: NH Beaufort | C49: Navy Medicine East | D49: Navy | E49: FY00, 1st Q | F49: Inpatient | G49: 104 | H49: 24 | I49: 4 | J49: 191927.37 | K49: 823465.72 | L49: 698788.74 | M49: 85114.84 | N49: 202627.21 | O49: 132790.77 | P49: 249980.84 | Q49: 9854.79 | R49: 35027.59 | S49: 0 | T49: 96957.74 | U49: 353316.9 | V49: 462079.04 | W49: 76378.25 | X49: 10053.86
A50: 0105 | B50: Ft. Jackson (Moncrief Army Community Hospital) | C50: RHC-A | D50: Army | E50: FY00, 1st Q | F50: Inpatient | G50: 69 | H50: 2 | I50: 1 | J50: 10450.53 | K50: 309394.58 | L50: 609708.58 | M50: 2668.51 | N50: 150628.01 | O50: 132611.89 | P50: 63625.22 | Q50: 5146.9 | R50: 43042.33 | S50: 25337.49 | T50: 7010.02 | U50: 272507.67 | V50: 117659.37 | W50: 92234.5 | X50: 28623.52
A51: 0106 | B51: Ellsworth AFB (28th Medical Group) | C51: ACC | D51: Air Force | E51: FY00, 1st Q | F51: Inpatient | G51: 53 | H51: 1 | I51: 0 | J51: 3733.44 | K51: 94386.89 | L51: 90847.6 | M51: 0 | N51: 0 | O51: 4326 | P51: 18336.98 | Q51: 0 | R51: 768 | S51: 0 | T51: 3733.44 | U51: 86271.6 | V51: 27047.24 | W51: 48234.67 | X51: 250
A52: 0108 | B52: Ft. Bliss (William Beaumont Army Medical Center) | C52: RHC-C | D52: Army | E52: FY00, 1st Q | F52: Inpatient | G52: 1512 | H52: 114 | I52: 4 | J52: 1256804.6 | K52: 6777518.27 | L52: 8054316.55 | M52: 443938.59 | N52: 2258897.55 | O52: 1244886.01 | P52: 1847819.15 | Q52: 17783.54 | R52: 491953.1 | S52: 2067.4 | T52: 795082.47 | U52: 4548465.59 | V52: 3735553.15 | W52: 702192.87 | X52: 0
A53: 0109 | B53: BAMC-SAMMC JBSA FSH | C53: RHC-C | D53: Army | E53: FY00, 1st Q | F53: Inpatient | G53: 1799 | H53: 91 | I53: 7 | J53: 835584.81 | K53: 5932334.41 | L53: 8692808.96 | M53: 9963.6 | N53: 3891558.12 | O53: 2045613.07 | P53: 2334763.64 | Q53: 44406.77 | R53: 731035.03 | S53: 21387.99 | T53: 781214.44 | U53: 1713970.63 | V53: 1061575.9 | W53: 1804959.84 | X53: 1020279.15
A54: 0110 | B54: Ft. Hood (C.R. Darnall Army Medical Center) | C54: RHC-C | D54: Army | E54: FY00, 1st Q | F54: Inpatient | G54: 2013 | H54: 31 | I54: 2 | J54: 163310.18 | K54: 866463.52 | L54: 875099.15 | M54: 68458.22 | N54: 358462.96 | O54: 114196.36 | P54: 498190.24 | Q54: 1136.8 | R54: 55583.11 | S54: 0 | T54: 93715.16 | U54: 402439.83 | V54: 293002.77 | W54: 19687.4 | X54: 0
A55: 0112 | B55: Dyess AFB (7th Medical Group) | C55: Air Force Global Strike Command (AFGSC) | D55: Air Force | E55: FY00, 1st Q | F55: Inpatient | G55: 5 | H55: 0 | I55: 0 | J55: 0 | K55: 42723.01 | L55: 86396.4 | M55: 0 | N55: 46935.33 | O55: 1311.35 | P55: 9298.47 | Q55: 0 | R55: 0 | S55: 0 | T55: 0 | U55: 38149.72 | V55: 33424.54 | W55: 0 | X55: 0
A56: 0113 | B56: Sheppard AFB (82nd Medical Group) | C56: AETC | D56: Air Force | E56: FY00, 1st Q | F56: Inpatient | G56: 377 | H56: 0 | I56: 0 | J56: 0 | K56: 459716.97 | L56: 785420.54 | M56: 0 | N56: 236689.05 | O56: 80090.32 | P56: 212236.64 | Q56: 0 | R56: 22982.28 | S56: 0 | T56: 0 | U56: 468641.17 | V56: 218998.69 | W56: 5499.36 | X56: 0
A57: 0117 | B57: Lackland AFB (59th Medical Wing) | C57: AETC | D57: Air Force | E57: FY00, 1st Q | F57: Inpatient | G57: 3184 | H57: 191 | I57: 27 | J57: 2123075.94 | K57: 12066806.81 | L57: 17163053.23 | M57: 987977.55 | N57: 4695475.07 | O57: 1581820.84 | P57: 3211591.07 | Q57: 133834.95 | R57: 592677.99 | S57: 30847.09 | T57: 1001263.44 | U57: 10057517.82 | V57: 6638618.51 | W57: 1623866.99 | X57: 797392.41
A58: 0120 | B58: Langley AFB (1st Medical Group) | C58: ACC | D58: Air Force | E58: FY00, 1st Q | F58: Inpatient | G58: 726 | H58: 20 | I58: 6 | J58: 119209.01 | K58: 736642.68 | L58: 853770.48 | M58: 56546.91 | N58: 255949.28 | O58: 120662.29 | P58: 323637.18 | Q58: 6577.37 | R58: 32271.4 | S58: 0 | T58: 56084.73 | U58: 473090.59 | V58: 369391.73 | W58: 11342.37 | X58: 4068.32
A59: 0121 | B59: Ft. Eustis (McDonald Army Health Center) | C59: RHC-A | D59: Army | E59: FY00, 1st Q | F59: Inpatient | G59: 89 | H59: 4 | I59: 0 | J59: 17420.99 | K59: 145398.01 | L59: 96325.6 | M59: 0 | N59: 28536.4 | O59: 23593.4 | P59: 58122.31 | Q59: 0 | R59: 13768.38 | S59: 0 | T59: 17420.99 | U59: 44195.8 | V59: 59257.28 | W59: 14250.04 | X59: 0
A60: 0123 | B60: Ft. Belvoir (FT. Belvoir Community Hospital) | C60: NCR MD | D60: NCR MD | E60: FY00, 1st Q | F60: Inpatient | G60: 721 | H60: 62 | I60: 1 | J60: 413477.84 | K60: 1214840.7 | L60: 1964199.79 | M60: 138182.01 | N60: 590473.46 | O60: 120636.57 | P60: 168815.13 | Q60: 768 | R60: 32115.3 | S60: 5713.04 | T60: 274527.83 | U60: 1144655.09 | V60: 516318.29 | W60: 497591.98 | X60: 102721.63
A61: 0124 | B61: NMC Portsmouth | C61: Navy Medicine East | D61: Navy | E61: FY00, 1st Q | F61: Inpatient | G61: 3720 | H61: 102 | I61: 2 | J61: 852024.87 | K61: 5905008.27 | L61: 9033536.68 | M61: 321005.1 | N61: 1511730.93 | O61: 691199.59 | P61: 909464.68 | Q61: 5311.32 | R61: 301730.74 | S61: 6693.22 | T61: 525708.45 | U61: 6676356.53 | V61: 3890033.9 | W61: 803778.95 | X61: 147556.41
A62: 0125 | B62: Ft. Lewis (Madigan Army Medical Center) | C62: RHC-P | D62: Army | E62: FY00, 1st Q | F62: Inpatient | G62: 2245 | H62: 66 | I62: 17 | J62: 1247365.9 | K62: 3918437.34 | L62: 9429777.54 | M62: 227468.78 | N62: 2812230.77 | O62: 937219.19 | P62: 1688614.4 | Q62: 105748.1 | R62: 356753.83 | S62: 1137.78 | T62: 914149.02 | U62: 4617259.28 | V62: 1049707.09 | W62: 823362.02 | X62: 1061930.52
A63: 0126 | B63: NH Bremerton | C63: Navy Medicine West | D63: Navy | E63: FY00, 1st Q | F63: Inpatient | G63: 434 | H63: 25 | I63: 5 | J63: 237362.85 | K63: 1060347.4 | L63: 1174996.84 | M63: 84265.34 | N63: 326136.6 | O63: 65344.06 | P63: 197502.26 | Q63: 8344.21 | R63: 43549.35 | S63: 0 | T63: 144753.3 | U63: 783516.18 | V63: 757539.97 | W63: 61755.82 | X63: 0
A64: 0127 | B64: NHC Oak Harbor | C64: Navy Medicine West | D64: Navy | E64: FY00, 1st Q | F64: Inpatient | G64: 0 | H64: 0 | I64: 0 | J64: 0 | K64: 0 | L64: 0 | M64: 0 | N64: 0 | O64: 0 | P64: 0 | Q64: 0 | R64: 0 | S64: 0 | T64: 0 | U64: 0 | V64: 0 | W64: 0 | X64: 0
A65: 0131 | B65: Ft. Irwin (Weed Army Community Hospital) | C65: RHC-C | D65: Army | E65: FY00, 1st Q | F65: Inpatient | G65: 213 | H65: 0 | I65: 0 | J65: 0 | K65: 17534.39 | L65: 26140.44 | M65: 0 | N65: 18022.47 | O65: 1938.89 | P65: 11265.62 | Q65: 0 | R65: 0 | S65: 0 | T65: 0 | U65: 6179.08 | V65: 3841.42 | W65: 2427.35 | X65: 0
A66: 0606 | B66: Heidelberg MEDDAC | C66: Europe Regional Medical Command (ERMC) | D66: Army | E66: FY00, 1st Q | F66: Inpatient | G66: 399 | H66: 1 | I66: 0 | J66: 8650.42 | K66: 102599.1 | L66: 50800.67 | M66: 0 | N66: 18882.7 | O66: 29883.11 | P66: 24997.26 | Q66: 0 | R66: 34486.82 | S66: 0 | T66: 8650.42 | U66: 175 | V66: 18733.23 | W66: 24381.79 | X66: 1859.86
A67: 0607 | B67: Landstuhl Regional Medical Center | C67: RHC-E | D67: Army | E67: FY00, 1st Q | F67: Inpatient | G67: 950 | H67: 18 | I67: 5 | J67: 206968.04 | K67: 597222.4 | L67: 484298.3 | M67: 250 | N67: 112764.8 | O67: 193432.72 | P67: 96049.32 | Q67: 68930.08 | R67: 394219.77 | S67: 23924.45 | T67: 137787.96 | U67: 56271.41 | V67: 40838.84 | W67: 66114.47 | X67: 97904.92
A68: 0609 | B68: Bavaria MEDDAC | C68: RHC-E | D68: Army | E68: FY00, 1st Q | F68: Inpatient | G68: 352 | H68: 0 | I68: 0 | J68: 10252.64 | K68: 51414.93 | L68: 23798.88 | M68: 0 | N68: 0 | O68: 5924.05 | P68: 29734.46 | Q68: 0 | R68: 7956.97 | S68: 4039.32 | T68: 10252.64 | U68: 251.98 | V68: 988.77 | W68: 12734.73 | X68: 13583.53
A69: 0610 | B69: BG CRAWFORD SAMS AHC-CAMP ZAMA | C69: RHC-P | D69: Army | E69: FY00, 1st Q | F69: Inpatient | G69: 0 | H69: 0 | I69: 0 | J69: 0 | K69: 0 | L69: 0 | M69: 0 | N69: 0 | O69: 0 | P69: 0 | Q69: 0 | R69: 0 | S69: 0 | T69: 0 | U69: 0 | V69: 0 | W69: 0 | X69: 0
A70: 0612 | B70: Brian Allgood ACH - Seoul | C70: RHC-P | D70: Army | E70: FY00, 1st Q | F70: Inpatient | G70: 282 | H70: 3 | I70: 0 | J70: 23706.56 | K70: 215633.31 | L70: 55544.06 | M70: 0 | N70: 15565.26 | O70: 15337.66 | P70: 115458.08 | Q70: 0 | R70: 44290.76 | S70: 0 | T70: 23706.56 | U70: 24641.14 | V70: 14526.69 | W70: 41357.78 | X70: 0
A71: 0616 | B71: NH Roosevelt Roads | C71: Navy Medicine East | D71: Navy | E71: FY00, 1st Q | F71: Inpatient | G71: 158 | H71: 2 | I71: 0 | J71: 9185.09 | K71: 268613.61 | L71: 147619.08 | M71: 4508.04 | N71: 40069.72 | O71: 31664.68 | P71: 41539.19 | Q71: 0 | R71: 28417.45 | S71: 0 | T71: 4677.05 | U71: 56522.66 | V71: 87068.09 | W71: 111588.88 | X71: 19362.02
A72: 0620 | B72: NH Guam | C72: Navy Medicine West | D72: Navy | E72: FY00, 1st Q | F72: Inpatient | G72: 522 | H72: 0 | I72: 0 | J72: 0 | K72: 519400.31 | L72: 357311.6 | M72: 0 | N72: 43918.16 | O72: 68374.17 | P72: 96780.59 | Q72: 0 | R72: 7990.46 | S72: 0 | T72: 0 | U72: 192253.9 | V72: 191141.77 | W72: 223487.49 | X72: 52765.37
A73: 0001 | B73: Redstone Arsenal (Fox Army Health Clinic) | C73: RHC-A | D73: Army | E73: FY01, 1st Q | F73: Inpatient | J73: 0 | K73: 0 | L73: 0 | M73: 0 | N73: 0 | O73: 0 | P73: 0 | Q73: 0 | R73: 0 | S73: 0 | T73: 0 | U73: 0 | V73: 0 | W73: 0 | X73: 0
A74: 0003 | B74: Ft. Rucker (Lyster Army Health Clinic) | C74: RHC-A | D74: Army | E74: FY01, 1st Q | F74: Inpatient | G74: 30 | H74: 1 | I74: 1 | J74: 8014.84 | K74: 130782.08 | L74: 113867.23 | M74: 7238.84 | N74: 92201.35 | O74: 2982.78 | P74: 86732.68 | Q74: 776 | R74: 5728.85 | S74: 0 | T74: 0 | U74: 15381.27 | V74: 27726.57 | W74: 10593.98 | X74: 3301.83
A75: 0005 | B75: Ft. Wainwright (Bassett Army Community Hospital) | C75: RHC-P | D75: Army | E75: FY01, 1st Q | F75: Inpatient | G75: 391 | H75: 9 | I75: 0 | J75: 51747.41 | K75: 300189.56 | L75: 427201.28 | M75: 4547.56 | N75: 196620.13 | O75: 56794.46 | P75: 155898.81 | Q75: 0 | R75: 9892.85 | S75: 38.79 | T75: 47199.85 | U75: 128831.35 | V75: 76323.82 | W75: 58074.08 | X75: 44916.55
A76: 0006 | B76: Elmendorf AFB (3rd Medical group) | C76: PACAF (Pacific Air Force) | D76: Air Force | E76: FY01, 1st Q | F76: Inpatient | G76: 694 | H76: 0 | I76: 0 | J76: 0 | K76: 813968.06 | L76: 944290.66 | M76: 0 | N76: 443482.01 | O76: 139221.08 | P76: 300300.06 | Q76: 0 | R76: 139728.15 | S76: 5990.84 | T76: 0 | U76: 341075.33 | V76: 300078.46 | W76: 73861.39 | X76: 14521.4
A77: 0009 | B77: Luke AFB (56th Medical Group) | C77: AETC | D77: Air Force | E77: FY01, 1st Q | F77: Inpatient | G77: 257 | H77: 4 | I77: 1 | J77: 38429.84 | K77: 79427.76 | L77: 99025.57 | M77: 26655.91 | N77: 0 | O77: 59828.59 | P77: 0 | Q77: 1710.56 | R77: 31499.15 | S77: 13750.9 | T77: 10063.37 | U77: 25446.08 | V77: 33941.33 | W77: 13987.28 | X77: 0
A78: 0014 | B78: Travis AFB (60th Medical Group) | C78: AMC | D78: Air Force | E78: FY01, 1st Q | F78: Inpatient | G78: 1375 | H78: 107 | I78: 0 | J78: 1833084.59 | K78: 6885011.98 | L78: 4482547.3 | M78: 616897.62 | N78: 614087 | O78: 417541.01 | P78: 1087571.9 | Q78: 0 | R78: 209726.55 | S78: 768 | T78: 1216186.97 | U78: 3350120.43 | V78: 5029611.58 | W78: 558101.95 | X78: 100030.86
A79: 0024 | B79: NH Camp Pendelton | C79: Navy Medicine West | D79: Navy | E79: FY01, 1st Q | F79: Inpatient | G79: 1168 | H79: 0 | I79: 0 | J79: 0 | K79: 876685.18 | L79: 605181.04 | M79: 0 | N79: 140687.15 | O79: 59712.31 | P79: 167900.38 | Q79: 0 | R79: 52900.58 | S79: 0 | T79: 0 | U79: 404781.58 | V79: 623141.69 | W79: 32742.53 | X79: 0
A80: 0028 | B80: NHC Lemoore | C80: Navy Medicine West | D80: Navy | E80: FY01, 1st Q | F80: Inpatient | G80: 185 | H80: 0 | I80: 0 | J80: 0 | K80: 75721.01 | L80: 56674.18 | M80: 0 | N80: 23564.72 | O80: 12194.34 | P80: 27757.18 | Q80: 0 | R80: 7920.22 | S80: 0 | T80: 0 | U80: 20915.12 | V80: 26957.74 | W80: 13085.87 | X80: 0
A81: 0029 | B81: NMC San Diego | C81: Navy Medicine West | D81: Navy | E81: FY01, 1st Q | F81: Inpatient | G81: 4028 | H81: 14 | I81: 0 | J81: 179062.57 | K81: 8932065.76 | L81: 8876953.48 | M81: 73110.12 | N81: 2036353.38 | O81: 526644.45 | P81: 1829166.93 | Q81: 0 | R81: 304267.48 | S81: 0 | T81: 105952.45 | U81: 6313955.65 | V81: 6439598.5 | W81: 359032.85 | X81: 0
A82: 0030 | B82: NH 29 Palms | C82: Navy Medicine West | D82: Navy | E82: FY01, 1st Q | F82: Inpatient | G82: 312 | H82: 0 | I82: 0 | J82: 0 | K82: 73926.47 | L82: 148821.54 | M82: 0 | N82: 42185.72 | O82: 3904.76 | P82: 29235.37 | Q82: 0 | R82: 22231.64 | S82: 0 | T82: 0 | U82: 102731.06 | V82: 22459.46 | W82: 0 | X82: 0
A83: 0032 | B83: Ft. Carson (Evans Army Community Hospital) | C83: RHC-C | D83: Army | E83: FY01, 1st Q | F83: Inpatient | G83: 783 | H83: 8 | I83: 0 | J83: 44825.3 | K83: 411049.5 | L83: 420501.58 | M83: 14732.76 | N83: 157584 | O83: 36707.09 | P83: 132174.66 | Q83: 0 | R83: 33027.81 | S83: 3022.52 | T83: 30092.54 | U83: 223187.97 | V83: 171806.64 | W83: 74040.39 | X83: 0
A84: 0033 | B84: USAF Academy (10th Medical Group) | C84: United States Air Force Academy (USAFA) | D84: Air Force | E84: FY01, 1st Q | F84: Inpatient | G84: 208 | H84: 30 | I84: 0 | J84: 194573.46 | K84: 1741501.45 | L84: 659489.25 | M84: 123710.85 | N84: 148347.03 | O84: 105663.6 | P84: 306445.58 | Q84: 0 | R84: 23851.81 | S84: 3543.56 | T84: 70862.61 | U84: 397343.07 | V84: 1388671.99 | W84: 22532.07 | X84: 4591.99
A85: 0037 | B85: Washington D.C. (Walter Reed Army Medical Center) | C85: Northern Regional Medical Command (NRMC) | D85: Army | E85: FY01, 1st Q | F85: Inpatient | G85: 2109 | H85: 9 | I85: 0 | J85: 141488.55 | K85: 21574622.91 | L85: 17459910.12 | M85: 63730.81 | N85: 3184097.6 | O85: 1190083.5 | P85: 3569897.26 | Q85: 0 | R85: 1081945.42 | S85: 52989.22 | T85: 77757.74 | U85: 9935380.96 | V85: 11971480.9 | W85: 4951299.33 | X85: 3097358.84
A86: 0038 | B86: NH Pensacola | C86: Navy Medicine East | D86: Navy | E86: FY01, 1st Q | F86: Inpatient | G86: 757 | H86: 0 | I86: 0 | J86: 0 | K86: 2509557.86 | L86: 2445973.33 | M86: 0 | N86: 544749.18 | O86: 131887.04 | P86: 539080.84 | Q86: 0 | R86: 160396.76 | S86: 3489.46 | T86: 0 | U86: 1765847.65 | V86: 1771721.67 | W86: 38358.59 | X86: 0
A87: 0039 | B87: NH Jacksonville | C87: Navy Medicine East | D87: Navy | E87: FY01, 1st Q | F87: Inpatient | G87: 967 | H87: 19 | I87: 2 | J87: 169067.72 | K87: 1396876.12 | L87: 1269586.22 | M87: 100670.92 | N87: 295388.05 | O87: 255742.02 | P87: 439545.03 | Q87: 2270.17 | R87: 85376.76 | S87: 0 | T87: 66126.63 | U87: 718456.15 | V87: 842717.43 | W87: 29236.9 | X87: 0
A88: 0042 | B88: Eglin AFB (96th Medical Group) | C88: AFMC | D88: Air Force | E88: FY01, 1st Q | F88: Inpatient | G88: 820 | H88: 21 | I88: 0 | J88: 341238.99 | K88: 2577863.93 | L88: 2728240.57 | M88: 0 | N88: 511589.94 | O88: 134179.24 | P88: 382117.9 | Q88: 0 | R88: 166593.29 | S88: 3399.01 | T88: 341238.99 | U88: 2022287.74 | V88: 1788376.49 | W88: 240776.25 | X88: 56784.64
A89: 0045 | B89: MacDill AFB (6th Medical Group) | C89: AMC | D89: Air Force | E89: FY01, 1st Q | F89: Inpatient | G89: 107 | H89: 1 | I89: 0 | J89: 13693.68 | K89: 204920.75 | L89: 176781.14 | M89: 13693.68 | N89: 47432.97 | O89: 10887.63 | P89: 37084.09 | Q89: 0 | R89: 768 | S89: 0 | T89: 0 | U89: 116059.49 | V89: 148194.71 | W89: 18873.95 | X89: 2401.05
A90: 0047 | B90: Ft. Gordon (AMC Eisenhower-Gordon) | C90: RHC-A | D90: Army | E90: FY01, 1st Q | F90: Inpatient | G90: 850 | H90: 40 | I90: 0 | J90: 523663.73 | K90: 8252467.36 | L90: 7915041.78 | M90: 260031.36 | N90: 2303862.94 | O90: 1007313.88 | P90: 1943321.78 | Q90: 0 | R90: 504094.1 | S90: 28988.84 | T90: 263632.37 | U90: 4530942.38 | V90: 5288711.53 | W90: 516339.95 | X90: 43933.74
A91: 0048 | B91: Ft. Benning (ACH Martin-Benning) | C91: RHC-A | D91: Army | E91: FY01, 1st Q | F91: Inpatient | G91: 707 | H91: 34 | I91: 0 | J91: 285808.38 | K91: 2080557.51 | L91: 1699062.3 | M91: 68492.7 | N91: 483259.91 | O91: 188036.45 | P91: 502780.07 | Q91: 0 | R91: 148883.06 | S91: 0 | T91: 217315.68 | U91: 1027016.32 | V91: 1254978.97 | W91: 173915.41 | X91: 749.62
A92: 0049 | B92: Ft. Stewart (Winn Army Community Hospital) | C92: RHC-A | D92: Army | E92: FY01, 1st Q | F92: Inpatient | G92: 832 | H92: 24 | I92: 9 | J92: 71240.5 | K92: 463772.75 | L92: 482719.73 | M92: 17406.58 | N92: 216797.03 | O92: 34621.26 | P92: 198491.08 | Q92: 16205.26 | R92: 17721.4 | S92: 0 | T92: 37628.66 | U92: 231301.44 | V92: 244769.37 | W92: 2790.9 | X92: 0
A93: 0052 | B93: Ft. Shafter (Tripler Army Medical Center) | C93: RHC-P | D93: Army | E93: FY01, 1st Q | F93: Inpatient | G93: 2381 | H93: 43 | I93: 11 | J93: 367769.91 | K93: 6353124.86 | L93: 5067973.19 | M93: 55684.82 | N93: 1772387.06 | O93: 998910.1 | P93: 2245809.74 | Q93: 54520.5 | R93: 300390.89 | S93: 244428.3 | T93: 257564.59 | U93: 1996198.01 | V93: 2419163.37 | W93: 1387760.86 | X93: 56049.72
A94: 0053 | B94: Mountain Home AFB (366th Medical Group) | C94: ACC | D94: Air Force | E94: FY01, 1st Q | F94: Inpatient | G94: 150 | H94: 1 | I94: 0 | J94: 2077.49 | K94: 112736.62 | L94: 44714.39 | M94: 0 | N94: 0 | O94: 0 | P94: 4462.57 | Q94: 0 | R94: 38542.48 | S94: 1884.59 | T94: 2077.49 | U94: 250 | V94: 17248.34 | W94: 52483.23 | X94: 42579.8
A95: 0055 | B95: Scott AFB (375th Medical Group) | C95: AMC | D95: Air Force | E95: FY01, 1st Q | F95: Inpatient | G95: 324 | H95: 29 | I95: 0 | J95: 200869.21 | K95: 2120706.49 | L95: 2268498.52 | M95: 107810.53 | N95: 758343.25 | O95: 244796.85 | P95: 605418.8 | Q95: 0 | R95: 131237.71 | S95: 3266 | T95: 93058.68 | U95: 1254751.03 | V95: 1171101.81 | W95: 212948.17 | X95: 7341.39
A96: 0056 | B96: NHC Great Lakes | C96: Navy Medicine East | D96: Navy | E96: FY01, 1st Q | F96: Inpatient | G96: 72 | H96: 6 | I96: 1 | J96: 32270.92 | K96: 243151.75 | L96: 225019.27 | M96: 11007.56 | N96: 59767.48 | O96: 20733.75 | P96: 57913.86 | Q96: 776 | R96: 7387.7 | S96: 0 | T96: 20487.36 | U96: 138844.99 | V96: 170217.12 | W96: 7633.07 | X96: 5673.05
A97: 0057 | B97: Ft. Riley (Irwin Army Community Hospital) | C97: RHC-C | D97: Army | E97: FY01, 1st Q | F97: Inpatient | G97: 2463 | H97: 73 | I97: 48 | J97: 297340.22 | K97: 343934.11 | L97: 664224.69 | M97: 77479.27 | N97: 334132.22 | O97: 71123.07 | P97: 96857.65 | Q97: 96356.89 | R97: 71228.26 | S97: 7486.68 | T97: 123504.06 | U97: 230847.92 | V97: 160778.63 | W97: 15069.57 | X97: 20634.8
A98: 0060 | B98: Ft. Campbell (Blanchfield Army Comm Hospital) | C98: RHC-A | D98: Army | E98: FY01, 1st Q | F98: Inpatient | G98: 1015 | H98: 10 | I98: 2 | J98: 68294.39 | K98: 600991.46 | L98: 488634.24 | M98: 2192.13 | N98: 276010.63 | O98: 65601.83 | P98: 317265.37 | Q98: 14294.61 | R98: 113396.75 | S98: 13330.99 | T98: 51807.65 | U98: 125127.6 | V98: 135268.79 | W98: 35060.55 | X98: 8563.19
A99: 0061 | B99: Ft. Knox (Ireland Army Community Hospital) | C99: RHC-A | D99: Army | E99: FY01, 1st Q | F99: Inpatient | G99: 414 | H99: 8 | I99: 0 | J99: 54293.29 | K99: 377536.33 | L99: 340425.48 | M99: 0 | N99: 56546.87 | O99: 86224.22 | P99: 68123.02 | Q99: 0 | R99: 27654.55 | S99: 802.36 | T99: 54293.29 | U99: 152380.03 | V99: 128380.54 | W99: 153378.22 | X99: 44472
A100: 0064 | B100: Ft. Polk (Bayne-Jones Army Community Hospital) | C100: RHC-C | D100: Army | E100: FY01, 1st Q | F100: Inpatient | G100: 419 | H100: 13 | I100: 2 | J100: 66692.28 | K100: 359160.61 | L100: 434663.39 | M100: 28471.53 | N100: 116212.56 | O100: 41031.35 | P100: 115087.6 | Q100: 5661.05 | R100: 21838.67 | S100: 0 | T100: 32559.7 | U100: 258294.83 | V100: 160292.24 | W100: 61942.1 | X100: 19124.65
A101: 0066 | B101: Andrews AFB (79th Medical Group) | C101: AFDW | D101: Air Force | E101: FY01, 1st Q | F101: Inpatient | G101: 765 | H101: 0 | I101: 0 | J101: 92440.87 | K101: 5869671.04 | L101: 5140587.19 | M101: 26530.87 | N101: 1300944.79 | O101: 308819.59 | P101: 1685785.26 | Q101: 0 | R101: 253032.67 | S101: 0 | T101: 65910 | U101: 3470306.85 | V101: 3605762.54 | W101: 325090.57 | X101: 60515.96
A102: 0067 | B102: Walter Reed National Military Medical Center | C102: NCR MD | D102: NCR MD | E102: FY01, 1st Q | F102: Inpatient | G102: 1856 | H102: 135 | I102: 13 | J102: 2018049.65 | K102: 18433533.22 | L102: 14658256.54 | M102: 650979.95 | N102: 2706631.21 | O102: 1106993.87 | P102: 3180628.04 | Q102: 69701.62 | R102: 1353093.07 | S102: 10980.03 | T102: 1297368.08 | U102: 10559047.48 | V102: 11558524.49 | W102: 2341287.62 | X102: 274603.95
A103: 0073 | B103: Keesler AFB (81st Medical Group) | C103: AETC | D103: Air Force | E103: FY01, 1st Q | F103: Inpatient | G103: 1223 | H103: 0 | I103: 0 | J103: 6145.66 | K103: 5756615.25 | L103: 6237748.57 | M103: 0 | N103: 1768623.82 | O103: 555360.11 | P103: 2239822.53 | Q103: 0 | R103: 263691.29 | S103: 0 | T103: 6145.66 | U103: 3885383.22 | V103: 2330551.31 | W103: 922550.12 | X103: 28381.42
A104: 0075 | B104: Ft. Leonard Wood (Wood Army Community Hospital) | C104: RHC-C | D104: Army | E104: FY01, 1st Q | F104: Inpatient | G104: 346 | H104: 9 | I104: 0 | J104: 49446.85 | K104: 727890.65 | L104: 573883.86 | M104: 22761.24 | N104: 252562.54 | O104: 74671.97 | P104: 241640.76 | Q104: 0 | R104: 45892.16 | S104: 0 | T104: 26685.61 | U104: 241966.7 | V104: 390858.1 | W104: 49499.63 | X104: 4682.65
A105: 0078 | B105: Offutt AFB (55th Medical Group) | C105: ACC | D105: Air Force | E105: FY01, 1st Q | F105: Inpatient | G105: 401 | H105: 0 | I105: 0 | J105: 0 | K105: 799002.49 | L105: 688263.64 | M105: 0 | N105: 209780.5 | O105: 116906.72 | P105: 193270.45 | Q105: 0 | R105: 85014.16 | S105: 0 | T105: 0 | U105: 356035.87 | V105: 503212.32 | W105: 17505.56 | X105: 5540.55
A106: 0079 | B106: Nellis AFB (99th Medical Group) | C106: ACC | D106: Air Force | E106: FY01, 1st Q | F106: Inpatient | G106: 522 | H106: 39 | I106: 0 | J106: 212766.73 | K106: 1193942.64 | L106: 877018.23 | M106: 25315.48 | N106: 252904.11 | O106: 173372.96 | P106: 513339.3 | Q106: 0 | R106: 111909.63 | S106: 0 | T106: 187451.25 | U106: 438142.35 | V106: 367914.09 | W106: 200779.62 | X106: 12598.81
A107: 0086 | B107: West Point (Keller Army Community Hospital) | C107: RHC-A | D107: Army | E107: FY01, 1st Q | F107: Inpatient | G107: 149 | H107: 0 | I107: 0 | J107: 24914.78 | K107: 680243.95 | L107: 483506.97 | M107: 3321.26 | N107: 64715.64 | O107: 64074.05 | P107: 137785.3 | Q107: 0 | R107: 60097.77 | S107: 0 | T107: 21593.52 | U107: 252471.36 | V107: 302511.37 | W107: 179849.51 | X107: 102245.92
A108: 0089 | B108: Ft. Bragg (Womack Army Medical Center) | C108: RHC-A | D108: Army | E108: FY01, 1st Q | F108: Inpatient | G108: 867 | H108: 0 | I108: 0 | J108: 0 | K108: 4011892.21 | L108: 2336370.62 | M108: 0 | N108: 702642.3 | O108: 525249.23 | P108: 1432607.06 | Q108: 0 | R108: 416487.84 | S108: 4449.45 | T108: 0 | U108: 1034061.97 | V108: 1656829.88 | W108: 505967.43 | X108: 69967.67
A109: 0091 | B109: NH Camp Lejeune | C109: Navy Medicine East | D109: Navy | E109: FY01, 1st Q | F109: Inpatient | G109: 996 | H109: 7 | I109: 0 | J109: 41019.03 | K109: 692303.32 | L109: 538005.27 | M109: 10807.29 | N109: 195229.16 | O109: 131284.26 | P109: 313069.2 | Q109: 0 | R109: 105477.99 | S109: 3534.34 | T109: 30211.74 | U109: 190404.26 | V109: 217432.37 | W109: 56323.76 | X109: 17553.25
A110: 0092 | B110: NHC Cherry Point | C110: Navy Medicine East | D110: Navy | E110: FY01, 1st Q | F110: Inpatient | G110: 282 | H110: 7 | I110: 0 | J110: 30552.1 | K110: 109028.89 | L110: 104136.75 | M110: 0 | N110: 79336.07 | O110: 21063.29 | P110: 48877.43 | Q110: 0 | R110: 18445.11 | S110: 0 | T110: 30552.1 | U110: 36039.21 | V110: 33023.13 | W110: 8683.22 | X110: 3698.18
A111: 0095 | B111: Wright Patterson AFB (88th Medical Group) | C111: AFMC | D111: Air Force | E111: FY01, 1st Q | F111: Inpatient | G111: 677 | H111: 36 | I111: 13 | J111: 443067.79 | K111: 8542385.98 | L111: 7607253.71 | M111: 147061.18 | N111: 2169546.35 | O111: 675448.78 | P111: 1963776.34 | Q111: 26612.41 | R111: 479123.89 | S111: 32688.65 | T111: 269394.2 | U111: 4712619.4 | V111: 5304896.27 | W111: 794589.48 | X111: 16950.53
A112: 0098 | B112: Ft. Sill (Reynolds Army Community Hospital) | C112: RHC-C | D112: Army | E112: FY01, 1st Q | F112: Inpatient | G112: 596 | H112: 2 | I112: 0 | J112: 11454.91 | K112: 141147.61 | L112: 226820 | M112: 0 | N112: 64263.7 | O112: 20163.68 | P112: 55082.41 | Q112: 0 | R112: 33437.32 | S112: 0 | T112: 11454.91 | U112: 136076.66 | V112: 46213.68 | W112: 6414.2 | X112: 6315.96
A113: 0100 | B113: NHC New England | C113: Navy Medicine East | D113: Navy | E113: FY01, 1st Q | F113: Inpatient | G113: 165 | H113: 2 | I113: 0 | J113: 190 | K113: 7758 | L113: 12261 | M113: 0 | N113: 2837 | O113: 1331 | P113: 2173 | Q113: 0 | R113: 731 | S113: 0 | T113: 190 | U113: 8093 | V113: 1923 | W113: 2931 | X113: 0
A114: 0101 | B114: Shaw AFB (20th Medical Group) | C114: ACC | D114: Air Force | E114: FY01, 1st Q | F114: Inpatient | G114: 133 | H114: 0 | I114: 0 | J114: 0 | K114: 56766.24 | L114: 142223.6 | M114: 0 | N114: 67365.37 | O114: 42477.72 | P114: 31967.8 | Q114: 0 | R114: 6640.98 | S114: 0 | T114: 0 | U114: 32380.51 | V114: 5782.36 | W114: 12375.1 | X114: 0
A115: 0104 | B115: NH Beaufort | C115: Navy Medicine East | D115: Navy | E115: FY01, 1st Q | F115: Inpatient | G115: 94 | H115: 16 | I115: 4 | J115: 112666.49 | K115: 745989.91 | L115: 823465.72 | M115: 82214.14 | N115: 250744.84 | O115: 44122.43 | P115: 144361.06 | Q115: 1867.96 | R115: 14120.68 | S115: 0 | T115: 28584.39 | U115: 520878.56 | V115: 539317.07 | W115: 48191.1 | X115: 7719.89
A116: 0105 | B116: Ft. Jackson (Moncrief Army Community Hospital) | C116: RHC-A | D116: Army | E116: FY01, 1st Q | F116: Inpatient | G116: 81 | H116: 6 | I116: 1 | J116: 23742.69 | K116: 289751.54 | L116: 314626.67 | M116: 2232.49 | N116: 63625.22 | O116: 54597.66 | P116: 75310.58 | Q116: 2448.73 | R116: 89160 | S116: 306.93 | T116: 19061.47 | U116: 129220.4 | V116: 75034.41 | W116: 50246.55 | X116: 66876.46
A117: 0108 | B117: Ft. Bliss (William Beaumont Army Medical Center) | C117: RHC-C | D117: Army | E117: FY01, 1st Q | F117: Inpatient | G117: 1414 | H117: 2 | I117: 1 | J117: 9412.61 | K117: 8131148.36 | L117: 6803658.97 | M117: 208.16 | N117: 1847819.15 | O117: 800845.9 | P117: 2007680.44 | Q117: 4998.3 | R117: 755620 | S117: 1787.26 | T117: 4206.15 | U117: 4142485.47 | V117: 4694515.64 | W117: 673332.28 | X117: 10721.19
A118: 0109 | B118: BAMC-SAMMC JBSA FSH | C118: RHC-C | D118: Army | E118: FY01, 1st Q | F118: Inpatient | G118: 3521 | H118: 14 | I118: 0 | J118: 165334.92 | K118: 6819753.91 | L118: 5969626.77 | M118: 0 | N118: 2334763.64 | O118: 1330157.65 | P118: 2286102.48 | Q118: 0 | R118: 1158738.83 | S118: 61538.1 | T118: 165334.92 | U118: 1349607.8 | V118: 1190213.05 | W118: 2184699.55 | X118: 893559.58
A119: 0110 | B119: Ft. Hood (C.R. Darnall Army Medical Center) | C119: RHC-C | D119: Army | E119: FY01, 1st Q | F119: Inpatient | G119: 2004 | H119: 36 | I119: 6 | J119: 200453.04 | K119: 1014962.97 | L119: 866463.52 | M119: 24494.74 | N119: 498190.24 | O119: 65917.34 | P119: 471074.58 | Q119: 38944.19 | R119: 129222.45 | S119: 0 | T119: 137014.11 | U119: 302355.94 | V119: 403410.86 | W119: 11255.08 | X119: 0
A120: 0112 | B120: Dyess AFB (7th Medical Group) | C120: Air Force Global Strike Command (AFGSC) | D120: Air Force | E120: FY01, 1st Q | F120: Inpatient | G120: 0 | H120: 0 | I120: 0 | J120: 0 | K120: 11932.42 | L120: 42723.01 | M120: 0 | N120: 9298.47 | O120: 0 | P120: 0 | Q120: 0 | R120: 0 | S120: 0 | T120: 0 | U120: 33424.54 | V120: 11932.42 | W120: 0 | X120: 0
A121: 0113 | B121: Sheppard AFB (82nd Medical Group) | C121: AETC | D121: Air Force | E121: FY01, 1st Q | F121: Inpatient | G121: 329 | H121: 0 | I121: 0 | J121: 24398.65 | K121: 185710.03 | L121: 459716.97 | M121: 0 | N121: 212236.64 | O121: 22982.28 | P121: 92618.07 | Q121: 0 | R121: 19592.76 | S121: 0 | T121: 24398.65 | U121: 224498.05 | V121: 71984.6 | W121: 5888.97 | X121: 0
A122: 0117 | B122: Lackland AFB (59th Medical Wing) | C122: AETC | D122: Air Force | E122: FY01, 1st Q | F122: Inpatient | G122: 3113 | H122: 110 | I122: 0 | J122: 1325873.79 | K122: 9459834.68 | L122: 12133290.83 | M122: 29131.87 | N122: 3184491.84 | O122: 881596.85 | P122: 2376490.39 | Q122: 0 | R122: 322569.47 | S122: 0 | T122: 1296741.92 | U122: 7568826.68 | V122: 4923594.7 | W122: 1837180.12 | X122: 498375.46
A123: 0120 | B123: Langley AFB (1st Medical Group) | C123: ACC | D123: Air Force | E123: FY01, 1st Q | F123: Inpatient | G123: 576 | H123: 4 | I123: 2 | J123: 31861.04 | K123: 390753.39 | L123: 736642.68 | M123: 9650.45 | N123: 318859.46 | O123: 33478.77 | P123: 127164.25 | Q123: 7610.6 | R123: 25671.7 | S123: 0 | T123: 14599.99 | U123: 384304.45 | V123: 215692.22 | W123: 22225.22 | X123: 0
A124: 0121 | B124: Ft. Eustis (McDonald Army Health Center) | C124: RHC-A | D124: Army | E124: FY01, 1st Q | F124: Inpatient | G124: 98 | H124: 0 | I124: 0 | J124: 0 | K124: 142873.43 | L124: 145398.01 | M124: 0 | N124: 58122.31 | O124: 26813.72 | P124: 42520.12 | Q124: 0 | R124: 6442.12 | S124: 0 | T124: 0 | U124: 60461.98 | V124: 66613.27 | W124: 27297.92 | X124: 0
A125: 0123 | B125: Ft. Belvoir (FT. Belvoir Community Hospital) | C125: NCR MD | D125: NCR MD | E125: FY01, 1st Q | F125: Inpatient | G125: 3049 | H125: 316 | I125: 16 | J125: 1945433.25 | K125: 1222401.78 | L125: 1969935.57 | M125: 681419.65 | N125: 590473.46 | O125: 120636.57 | P125: 168815.13 | Q125: 43036.41 | R125: 40488.17 | S125: 5713.04 | T125: 1220977.19 | U125: 1144655.09 | V125: 528729.03 | W125: 484369.45 | X125: 108457.41
A126: 0124 | B126: NMC Portsmouth | C126: Navy Medicine East | D126: Navy | E126: FY01, 1st Q | F126: Inpatient | G126: 3234 | H126: 161 | I126: 1 | J126: 1718891.3 | K126: 9441229.76 | L126: 5963006.02 | M126: 70900.15 | N126: 905756.66 | O126: 695430.04 | P126: 1047946.96 | Q126: 8415.62 | R126: 313207.94 | S126: 0 | T126: 1639575.53 | U126: 4325024.18 | V126: 4722456.67 | W126: 3357618.19 | X126: 36795.14
A127: 0125 | B127: Ft. Lewis (Madigan Army Medical Center) | C127: RHC-P | D127: Army | E127: FY01, 1st Q | F127: Inpatient | G127: 2223 | H127: 56 | I127: 7 | J127: 850253.55 | K127: 6440980.78 | L127: 3927389.19 | M127: 254641.97 | N127: 1688614.4 | O127: 554149.05 | P127: 2178894.25 | Q127: 27301.01 | R127: 1069972.51 | S127: 0 | T127: 568310.57 | U127: 1149705.71 | V127: 1543167.98 | W127: 1648946.04 | X127: 534920.03
A128: 0126 | B128: NH Bremerton | C128: Navy Medicine West | D128: Navy | E128: FY01, 1st Q | F128: Inpatient | G128: 677 | H128: 52 | I128: 13 | J128: 459679.71 | K128: 1648570.55 | L128: 1060347.4 | M128: 225498.77 | N128: 196734.26 | O128: 93557.95 | P128: 449057.59 | Q128: 18345.42 | R128: 108378.42 | S128: -2333.83 | T128: 215835.52 | U128: 772389.02 | V128: 996736.17 | W128: 94398.37 | X128: 0
A129: 0127 | B129: NHC Oak Harbor | C129: Navy Medicine West | D129: Navy | E129: FY01, 1st Q | F129: Inpatient | G129: 286 | H129: 7 | I129: 0 | J129: 23760.42 | K129: 111286.72 | L129: 79737.15 | M129: 10140.71 | N129: 25217.61 | O129: 21861.27 | P129: 38775.02 | Q129: 0 | R129: 0 | S129: 629.44 | T129: 13619.71 | U129: 31908.27 | V129: 52925.97 | W129: 19585.73 | X129: 120.56
A130: 0131 | B130: Ft. Irwin (Weed Army Community Hospital) | C130: RHC-C | D130: Army | E130: FY01, 1st Q | F130: Inpatient | G130: 210 | H130: 6 | I130: 2 | J130: 30905.92 | K130: 12988.38 | L130: 17534.39 | M130: 13793.9 | N130: 11265.62 | O130: 0 | P130: 3590.6 | Q130: 53.87 | R130: 250 | S130: 0 | T130: 17058.15 | U130: 6268.77 | V130: 2342.7 | W130: 6805.08 | X130: 0
A131: 0606 | B131: Heidelberg MEDDAC | C131: Europe Regional Medical Command (ERMC) | D131: Army | E131: FY01, 1st Q | F131: Inpatient | G131: 321 | H131: 0 | I131: 0 | J131: 0 | K131: 47246.94 | L131: 92430.99 | M131: 0 | N131: 24997.26 | O131: 43156.34 | P131: 37959.79 | Q131: 0 | R131: 0 | S131: 0 | T131: 0 | U131: 14458.03 | V131: 550 | W131: 8737.15 | X131: 9819.36
A132: 0607 | B132: Landstuhl Regional Medical Center | C132: RHC-E | D132: Army | E132: FY01, 1st Q | F132: Inpatient | G132: 933 | H132: 8 | I132: 2 | J132: 161740.95 | K132: 1014808 | L132: 603988.36 | M132: 0 | N132: 96049.32 | O132: 433453.93 | P132: 898329.5 | Q132: 47701.2 | R132: 48115.75 | S132: 0 | T132: 114039.75 | U132: 49454.45 | V132: 45725.03 | W132: 22637.72 | X132: 25030.66
A133: 0609 | B133: Bavaria MEDDAC | C133: RHC-E | D133: Army | E133: FY01, 1st Q | F133: Inpatient | G133: 343 | H133: 1 | I133: 0 | J133: 30336.33 | K133: 76205.93 | L133: 51414.93 | M133: 0 | N133: 29734.46 | O133: 7956.97 | P133: 10778.64 | Q133: 0 | R133: 29432.68 | S133: 0 | T133: 30336.33 | U133: 988.77 | V133: 750 | W133: 35244.61 | X133: 12734.73
A134: 0612 | B134: Brian Allgood ACH - Seoul | C134: RHC-P | D134: Army | E134: FY01, 1st Q | F134: Inpatient | G134: 71 | H134: 1 | I134: 0 | J134: 11201.03 | K134: 110954.65 | L134: 215633.31 | M134: 0 | N134: 115458.08 | O134: 50458.81 | P134: 54430.29 | Q134: 0 | R134: 6427.58 | S134: 0 | T134: 11201.03 | U134: 24891.51 | V134: 9222.56 | W134: 40874.22 | X134: 24824.91
A135: 0616 | B135: NH Roosevelt Roads | C135: Navy Medicine East | D135: Navy | E135: FY01, 1st Q | F135: Inpatient | G135: 143 | H135: 0 | I135: 0 | J135: 3899.98 | K135: 79579.37 | L135: 268613.61 | M135: 0 | N135: 41539.19 | O135: 30503.77 | P135: 11666.76 | Q135: 0 | R135: 1764.9 | S135: 2462.6 | T135: 3899.98 | U135: 97921.74 | V135: 12026.61 | W135: 54121.1 | X135: 96186.31
A136: 0620 | B136: NH Guam | C136: Navy Medicine West | D136: Navy | E136: FY01, 1st Q | F136: Inpatient | G136: 389 | H136: 0 | I136: 0 | J136: 0 | K136: 456600.39 | L136: 519400.31 | M136: 0 | N136: 96780.59 | O136: 139928.32 | P136: 154358.97 | Q136: 0 | R136: 39267.23 | S136: -15850.28 | T136: 0 | U136: 235091.52 | V136: 173432.94 | W136: 89541.25 | X136: 63450.16
A137: 0003 | B137: Ft. Rucker (Lyster Army Health Clinic) | C137: RHC-A | D137: Army | E137: FY02, 1st Q | F137: Inpatient | G137: 24 | H137: 2 | I137: 0 | J137: 21441.56 | K137: 129083.66 | L137: 130782.08 | M137: 0 | N137: 86732.68 | O137: 5728.85 | P137: 72523.89 | Q137: 0 | R137: 15327.45 | S137: 0 | T137: 21441.56 | U137: 26958.57 | V137: 29271.53 | W137: 11960.79 | X137: 11361.98
A138: 0005 | B138: Ft. Wainwright (Bassett Army Community Hospital) | C138: RHC-P | D138: Army | E138: FY02, 1st Q | F138: Inpatient | G138: 342 | H138: 7 | I138: 1 | J138: 102674.19 | K138: 400150.81 | L138: 286870.28 | M138: 21413.15 | N138: 155898.81 | O138: 41979.67 | P138: 147931.08 | Q138: 3240.59 | R138: 108787.65 | S138: 3807.77 | T138: 78020.45 | U138: 66957.24 | V138: 93874.18 | W138: 49557.9 | X138: 18226.79
A139: 0006 | B139: Elmendorf AFB (3rd Medical group) | C139: PACAF (Pacific Air Force) | D139: Air Force | E139: FY02, 1st Q | F139: Inpatient | G139: 749 | H139: 64 | I139: 3 | J139: 491988.98 | K139: 1890695.75 | L139: 842900.8 | M139: 153560.69 | N139: 300300.06 | O139: 191826.26 | P139: 645009.06 | Q139: 2376 | R139: 268923.88 | S139: 0 | T139: 336052.29 | U139: 338302.51 | V139: 869390.57 | W139: 107372.24 | X139: 12471.97
A140: 0009 | B140: Luke AFB (56th Medical Group) | C140: AETC | D140: Air Force | E140: FY02, 1st Q | F140: Inpatient | G140: 60 | H140: 3 | I140: 2 | J140: 15769.66 | K140: 107183.02 | L140: 79427.76 | M140: 1303 | N140: 0 | O140: 31499.15 | P140: 34215.81 | Q140: 4011.97 | R140: 2417.87 | S140: 0 | T140: 10454.69 | U140: 47928.61 | V140: 63678.01 | W140: 6871.33 | X140: 0
A141: 0014 | B141: Travis AFB (60th Medical Group) | C141: AMC | D141: Air Force | E141: FY02, 1st Q | F141: Inpatient | G141: 1090 | H141: 74 | I141: 1 | J141: 1052252.26 | K141: 7425444.87 | L141: 7031586.63 | M141: 56119.3 | N141: 1087571.9 | O141: 327476.2 | P141: 1207571.73 | Q141: 7548.73 | R141: 302669.08 | S141: 140104.02 | T141: 988584.23 | U141: 4984393.43 | V141: 2672441.59 | W141: 3242762.47 | X141: 492041.08
A142: 0024 | B142: NH Camp Pendelton | C142: Navy Medicine West | D142: Navy | E142: FY02, 1st Q | F142: Inpatient | G142: 1186 | H142: 11 | I142: 0 | J142: 71969 | K142: 886241.09 | L142: 881373.07 | M142: 54484.97 | N142: 167900.38 | O142: 90032.89 | P142: 166132.45 | Q142: 0 | R142: 29166.74 | S142: 0 | T142: 17484.03 | U142: 623439.8 | V142: 681807.73 | W142: 9134.17 | X142: 0
A143: 0028 | B143: NHC Lemoore | C143: Navy Medicine West | D143: Navy | E143: FY02, 1st Q | F143: Inpatient | G143: 176 | H143: 5 | I143: 0 | J143: 21361.11 | K143: 58358.9 | L143: 75721.01 | M143: 7638.49 | N143: 27757.18 | O143: 12593.56 | P143: 26195.41 | Q143: 0 | R143: 2828.91 | S143: 0 | T143: 13722.62 | U143: 35370.27 | V143: 18022.06 | W143: 11312.52 | X143: 0
A144: 0029 | B144: NMC San Diego | C144: Navy Medicine West | D144: Navy | E144: FY02, 1st Q | F144: Inpatient | G144: 3892 | H144: 52 | I144: 0 | J144: 1095690.62 | K144: 5490888.21 | L144: 8954156.3 | M144: 558096.9 | N144: 1807005.43 | O144: 328367.28 | P144: 1261640.53 | Q144: 0 | R144: 439731.03 | S144: 150639.38 | T144: 537593.72 | U144: 6573856.31 | V144: 3511694.59 | W144: 277822.06 | X144: 94287.9
A145: 0030 | B145: NH 29 Palms | C145: Navy Medicine West | D145: Navy | E145: FY02, 1st Q | F145: Inpatient | G145: 259 | H145: 1 | I145: 0 | J145: 7436.99 | K145: 140190.02 | L145: 78509.68 | M145: 0 | N145: 29235.37 | O145: 22231.64 | P145: 36156.17 | Q145: 0 | R145: 9298.32 | S145: 0 | T145: 7436.99 | U145: 27042.67 | V145: 78774.66 | W145: 15960.87 | X145: 0
A146: 0032 | B146: Ft. Carson (Evans Army Community Hospital) | C146: RHC-C | D146: Army | E146: FY02, 1st Q | F146: Inpatient | G146: 741 | H146: 3 | I146: 0 | J146: 21705.19 | K146: 442734.55 | L146: 411049.5 | M146: 6876.13 | N146: 132174.66 | O146: 88232.5 | P146: 119772.07 | Q146: 0 | R146: 40379.62 | S146: 0 | T146: 14829.06 | U146: 184584.39 | V146: 226647.23 | W146: 55935.63 | X146: 6057.95
A147: 0033 | B147: USAF Academy (10th Medical Group) | C147: United States Air Force Academy (USAFA) | D147: Air Force | E147: FY02, 1st Q | F147: Inpatient | G147: 146 | H147: 4 | I147: 0 | J147: 32726.32 | K147: 688703.8 | L147: 1741501.45 | M147: 0 | N147: 306445.58 | O147: 29562.58 | P147: 100831.5 | Q147: 0 | R147: 40981.84 | S147: 0 | T147: 32726.32 | U147: 1387599.44 | V147: 381892.45 | W147: 164998.01 | X147: 17893.85
A148: 0037 | B148: Washington D.C. (Walter Reed Army Medical Center) | C148: Northern Regional Medical Command (NRMC) | D148: Army | E148: FY02, 1st Q | F148: Inpatient | G148: 0 | H148: 0 | I148: 0 | J148: 0 | K148: 0 | L148: 0 | M148: 0 | N148: 3569897.26 | O148: 2054078.94 | P148: 3176331.72 | Q148: 0 | R148: 324825.24 | S148: 38882.56 | T148: 0 | U148: 0 | V148: 0 | W148: 0 | X148: 0
A149: 0038 | B149: NH Pensacola | C149: Navy Medicine East | D149: Navy | E149: FY02, 1st Q | F149: Inpatient | G149: 686 | H149: 52 | I149: 0 | J149: 630336.57 | K149: 2694136.1 | L149: 2504796.24 | M149: 271174.94 | N149: 537497.9 | O149: 187862.01 | P149: 661553.69 | Q149: 0 | R149: 98902.89 | S149: 0 | T149: 359161.63 | U149: 1779436.33 | V149: 1783751.85 | W149: 149927.67 | X149: 0
A150: 0039 | B150: NH Jacksonville | C150: Navy Medicine East | D150: Navy | E150: FY02, 1st Q | F150: Inpatient | G150: 1069 | H150: 24 | I150: 0 | J150: 163047.92 | K150: 1911637.33 | L150: 1422175.9 | M150: 52905.43 | N150: 438769.03 | O150: 127210.13 | P150: 546066.36 | Q150: 0 | R150: 136443.88 | S150: 0 | T150: 110142.49 | U150: 856196.74 | V150: 1050871.92 | W150: 178255.17 | X150: 0
A151: 0042 | B151: Eglin AFB (96th Medical Group) | C151: AFMC | D151: Air Force | E151: FY02, 1st Q | F151: Inpatient | G151: 875 | H151: 38 | I151: 0 | J151: 462121.89 | K151: 2265087.3 | L151: 2606821.57 | M151: 33551.75 | N151: 382117.9 | O151: 227039 | P151: 384873.88 | Q151: 0 | R151: 87498.77 | S151: 21185.25 | T151: 428570.14 | U151: 1915557.54 | V151: 1713502.91 | W151: 79211.74 | X151: 60921.88
A152: 0045 | B152: MacDill AFB (6th Medical Group) | C152: AMC | D152: Air Force | E152: FY02, 1st Q | F152: Inpatient | G152: 118 | H152: 1 | I152: 0 | J152: 5760.95 | K152: 105645.24 | L152: 226952.42 | M152: 0 | N152: 37084.09 | O152: 21148.15 | P152: 29241.93 | Q152: 0 | R152: 198 | S152: 0 | T152: 5760.95 | U152: 162852.22 | V152: 66180.68 | W152: 10024.63 | X152: 5867.96
A153: 0047 | B153: Ft. Gordon (AMC Eisenhower-Gordon) | C153: RHC-A | D153: Army | E153: FY02, 1st Q | F153: Inpatient | G153: 911 | H153: 17 | I153: 0 | J153: 168855.3 | K153: 9923549.31 | L153: 8483061.8 | M153: 55914.09 | N153: 1943321.78 | O153: 685411.8 | P153: 2396231.36 | Q153: 0 | R153: 459297.48 | S153: 8319.78 | T153: 112941.21 | U153: 5833713.37 | V153: 6645131.21 | W153: 422889.26 | X153: 12295.07
A154: 0048 | B154: Ft. Benning (ACH Martin-Benning) | C154: RHC-A | D154: Army | E154: FY02, 1st Q | F154: Inpatient | G154: 763 | H154: 47 | I154: 10 | J154: 290066.26 | K154: 1686504.53 | L154: 2080557.51 | M154: 114781.01 | N154: 502004.07 | O154: 227032.87 | P154: 430305.46 | Q154: 30210.85 | R154: 118807.94 | S154: 0 | T154: 145074.4 | U154: 1325370.75 | V154: 1016561.98 | W154: 120829.15 | X154: 26149.82
A155: 0049 | B155: Ft. Stewart (Winn Army Community Hospital) | C155: RHC-A | D155: Army | E155: FY02, 1st Q | F155: Inpatient | G155: 788 | H155: 14 | I155: 3 | J155: 63449.05 | K155: 302323.31 | L155: 463772.75 | M155: 21007.98 | N155: 198491.08 | O155: 20312.3 | P155: 140862.71 | Q155: 0 | R155: 19451.94 | S155: 0 | T155: 42441.07 | U155: 244969.37 | V155: 138251.46 | W155: 3757.2 | X155: 0
A156: 0052 | B156: Ft. Shafter (Tripler Army Medical Center) | C156: RHC-P | D156: Army | E156: FY02, 1st Q | F156: Inpatient | G156: 2307 | H156: 78 | I156: 11 | J156: 701555.48 | K156: 4859507.67 | L156: 6423135.28 | M156: 82572.34 | N156: 2245811.84 | O156: 563494.46 | P156: 1843020.45 | Q156: 57224.2 | R156: 298429.16 | S156: 76146.36 | T156: 561758.94 | U156: 3153877.52 | V156: 1946924.31 | W156: 771133.75 | X156: 383805.1
A157: 0053 | B157: Mountain Home AFB (366th Medical Group) | C157: ACC | D157: Air Force | E157: FY02, 1st Q | F157: Inpatient | G157: 156 | H157: 3 | I157: 0 | J157: 12087.53 | K157: 45030.23 | L157: 122014.61 | M157: 0 | N157: 4462.57 | O157: 51838.06 | P157: 26592.5 | Q157: 0 | R157: 2913.55 | S157: 0 | T157: 12087.53 | U157: 46931.83 | V157: 9143.51 | W157: 6380.67 | X157: 18782.15
A158: 0055 | B158: Scott AFB (375th Medical Group) | C158: AMC | D158: Air Force | E158: FY02, 1st Q | F158: Inpatient | G158: 278 | H158: 44 | I158: 2 | J158: 346775.07 | K158: 2642996.86 | L158: 2128155.4 | M158: 77717.99 | N158: 604642.8 | O158: 284252.31 | P158: 596204.18 | Q158: 1584 | R158: 214093.36 | S158: 0 | T158: 267473.08 | U158: 1227007.07 | V158: 1670264.58 | W158: 162434.74 | X158: 12253.22
A159: 0056 | B159: NHC Great Lakes | C159: Navy Medicine East | D159: Navy | E159: FY02, 1st Q | F159: Inpatient | G159: 89 | H159: 5 | I159: 0 | J159: 25719.84 | K159: 261153.43 | L159: 243151.75 | M159: 9078.17 | N159: 57913.86 | O159: 14254.86 | P159: 50311.77 | Q159: 0 | R159: 8879.72 | S159: 0 | T159: 16641.67 | U159: 170983.03 | V159: 171624.05 | W159: 30337.89 | X159: 0
A160: 0057 | B160: Ft. Riley (Irwin Army Community Hospital) | C160: RHC-C | D160: Army | E160: FY02, 1st Q | F160: Inpatient | G160: 476 | H160: 9 | I160: 3 | J160: 88122.25 | K160: 405540.89 | L160: 313734.68 | M160: 29243.46 | N160: 96356.89 | O160: 57188.93 | P160: 197603.47 | Q160: 12764.93 | R160: 56572.99 | S160: 0 | T160: 46113.86 | U160: 160188.86 | V160: 142599.55 | W160: 8764.88 | X160: 0
A161: 0060 | B161: Ft. Campbell (Blanchfield Army Comm Hospital) | C161: RHC-A | D161: Army | E161: FY02, 1st Q | F161: Inpatient | G161: 982 | H161: 7 | I161: 0 | J161: 34564.77 | K161: 560918.46 | L161: 602163.78 | M161: 0 | N161: 317265.37 | O161: 133986.28 | P161: 302728.94 | Q161: 0 | R161: 74417.95 | S161: -1281.92 | T161: 34564.77 | U161: 152194.05 | V161: 91058.62 | W161: 92712.95 | X161: 0
A162: 0061 | B162: Ft. Knox (Ireland Army Community Hospital) | C162: RHC-A | D162: Army | E162: FY02, 1st Q | F162: Inpatient | G162: 394 | H162: 13 | I162: 0 | J162: 81527.55 | K162: 442067.86 | L162: 393972.11 | M162: 3938.61 | N162: 68123.02 | O162: 123032.36 | P162: 113486.48 | Q162: 0 | R162: 40222.59 | S162: 0 | T162: 77588.94 | U162: 188535.38 | V162: 228982.68 | W162: 59376.11 | X162: 14281.35
A163: 0064 | B163: Ft. Polk (Bayne-Jones Army Community Hospital) | C163: RHC-C | D163: Army | E163: FY02, 1st Q | F163: Inpatient | G163: 457 | H163: 19 | I163: 3 | J163: 104148.53 | K163: 517201.75 | L163: 389672.19 | M163: 47499.69 | N163: 115087.6 | O163: 27556.07 | P163: 138435.72 | Q163: 7961.46 | R163: 18741.4 | S163: 0 | T163: 48687.38 | U163: 188449.88 | V163: 304267.83 | W163: 55756.8 | X163: 58578.64
A164: 0066 | B164: Andrews AFB (79th Medical Group) | C164: AFDW | D164: Air Force | E164: FY02, 1st Q | F164: Inpatient | G164: 847 | H164: 0 | I164: 0 | J164: 799327.75 | K164: 1545636.96 | L164: 189837.75 | M164: 308950.92 | N164: 3913.96 | O164: 3298.28 | P164: 32692.08 | Q164: 0 | R164: 228201.79 | S164: 2679.64 | T164: 490376.83 | U164: 112682.81 | V164: 647568.62 | W164: 637174.47 | X164: 67263.06
A165: 0067 | B165: Walter Reed National Military Medical Center | C165: NCR MD | D165: NCR MD | E165: FY02, 1st Q | F165: Inpatient | G165: 1904 | H165: 187 | I165: 15 | J165: 3725727.08 | K165: 20995468.86 | L165: 18984946.57 | M165: 1174614.31 | N165: 3180628.04 | O165: 2568586.59 | P165: 4668136.98 | Q165: 60651.58 | R165: 945135.08 | S165: 12061.48 | T165: 2490461.19 | U165: 13142977.14 | V165: 13693885.18 | W165: 1688311.62 | X165: 80693.32
A166: 0073 | B166: Keesler AFB (81st Medical Group) | C166: AETC | D166: Air Force | E166: FY02, 1st Q | F166: Inpatient | G166: 1276 | H166: 59 | I166: 0 | J166: 976574.38 | K166: 3777741.89 | L166: 5756615.25 | M166: 252015.78 | N166: 2239822.53 | O166: 577570.65 | P166: 1435435.06 | Q166: 0 | R166: 0 | S166: 0 | T166: 724558.6 | U166: 2933019.24 | V166: 1496908.32 | W166: 845398.51 | X166: 6202.83
A167: 0075 | B167: Ft. Leonard Wood (Wood Army Community Hospital) | C167: RHC-C | D167: Army | E167: FY02, 1st Q | F167: Inpatient | G167: 380 | H167: 18 | I167: 4 | J167: 93306.86 | K167: 591583.53 | L167: 730628.24 | M167: 34919.22 | N167: 241640.76 | O167: 47504.36 | P167: 210998.72 | Q167: 13581.61 | R167: 60293.24 | S167: 0 | T167: 44806.03 | U167: 398196.28 | V167: 283752.71 | W167: 36538.86 | X167: 43286.84
A168: 0078 | B168: Offutt AFB (55th Medical Group) | C168: ACC | D168: Air Force | E168: FY02, 1st Q | F168: Inpatient | G168: 378 | H168: 9 | I168: 0 | J168: 127479.36 | K168: 622776.02 | L168: 799002.49 | M168: 48216.69 | N168: 192494.45 | O168: 86992.41 | P168: 130823.21 | Q168: 0 | R168: 18606.25 | S168: 0 | T168: 79262.67 | U168: 519515.63 | V168: 380186.29 | W168: 93160.27 | X168: 0
A169: 0079 | B169: Nellis AFB (99th Medical Group) | C169: ACC | D169: Air Force | E169: FY02, 1st Q | F169: Inpatient | G169: 483 | H169: 19 | I169: 0 | J169: 106049.59 | K169: 1076176.58 | L169: 1197334.03 | M169: 6992.65 | N169: 513339.3 | O169: 171189.28 | P169: 383140.49 | Q169: 0 | R169: 182153.81 | S169: 9251.2 | T169: 99056.94 | U169: 385522.97 | V169: 290948.65 | W169: 219933.63 | X169: 118031.28
A170: 0086 | B170: West Point (Keller Army Community Hospital) | C170: RHC-A | D170: Army | E170: FY02, 1st Q | F170: Inpatient | G170: 170 | H170: 1 | I170: 0 | J170: 26951.54 | K170: 348560.3 | L170: 680243.95 | M170: 2931.97 | N170: 137785.3 | O170: 74433.9 | P170: 53045.58 | Q170: 0 | R170: 21479.53 | S170: 0 | T170: 24019.57 | U170: 312586.43 | V170: 167315.1 | W170: 106720.09 | X170: 155438.32
A171: 0089 | B171: Ft. Bragg (Womack Army Medical Center) | C171: RHC-A | D171: Army | E171: FY02, 1st Q | F171: Inpatient | G171: 2366 | H171: 51 | I171: 19 | J171: 465445.19 | K171: 4552518.15 | L171: 4113406.99 | M171: 88089.73 | N171: 1431063.06 | O171: 507254.21 | P171: 1493387.62 | Q171: 122918.85 | R171: 365856.6 | S171: 7975.24 | T171: 254436.61 | U171: 1802540.11 | V171: 1552987.68 | W171: 1140286.25 | X171: 364574.37
A172: 0091 | B172: NH Camp Lejeune | C172: Navy Medicine East | D172: Navy | E172: FY02, 1st Q | F172: Inpatient | G172: 1129 | H172: 17 | I172: 0 | J172: 79882.85 | K172: 788763.45 | L172: 703649.95 | M172: 30472.7 | N172: 313069.2 | O172: 139994.66 | P172: 300668.45 | Q172: 0 | R172: 113202.72 | S172: 0 | T172: 49410.15 | U172: 226765.64 | V172: 250992.35 | W172: 123899.93 | X172: 23820.45
A173: 0092 | B173: NHC Cherry Point | C173: Navy Medicine East | D173: Navy | E173: FY02, 1st Q | F173: Inpatient | G173: 291 | H173: 4 | I173: 0 | J173: 15186.79 | K173: 81897.89 | L173: 109028.89 | M173: 0 | N173: 48877.43 | O173: 19767.06 | P173: 46630.28 | Q173: 0 | R173: 8943.36 | S173: 1486.71 | T173: 15186.79 | U173: 38897.69 | V173: 25532.25 | W173: 792 | X173: 0
A174: 0095 | B174: Wright Patterson AFB (88th Medical Group) | C174: AFMC | D174: Air Force | E174: FY02, 1st Q | F174: Inpatient | G174: 750 | H174: 140 | I174: 2 | J174: 1813695.98 | K174: 9506035.61 | L174: 8652092.73 | M174: 563180.5 | N174: 1963776.34 | O174: 749337.42 | P174: 1955988.56 | Q174: 1648.67 | R174: 476618.57 | S174: 3773.86 | T174: 1248866.81 | U174: 5489126.48 | V174: 5653655.11 | W174: 1419773.37 | X174: 446078.63
A175: 0098 | B175: Ft. Sill (Reynolds Army Community Hospital) | C175: RHC-C | D175: Army | E175: FY02, 1st Q | F175: Inpatient | G175: 658 | H175: 1 | I175: 0 | J175: 3835.61 | K175: 136337.87 | L175: 141147.61 | M175: 0 | N175: 55082.41 | O175: 32030.4 | P175: 45500.03 | Q175: 0 | R175: 20578.08 | S175: 3367.42 | T175: 3835.61 | U175: 32114.6 | V175: 43990.62 | W175: 26269.14 | X175: 18552.78
A176: 0100 | B176: NHC New England | C176: Navy Medicine East | D176: Navy | E176: FY02, 1st Q | F176: Inpatient | G176: 159 | H176: 7 | I176: 0 | J176: 1548 | K176: 4652 | L176: 7758 | M176: 0 | N176: 0 | O176: 2173 | P176: 2850 | Q176: 0 | R176: 779 | S176: 3244 | T176: 1548 | U176: 2341 | V176: 555 | W176: 468 | X176: 0
A177: 0101 | B177: Shaw AFB (20th Medical Group) | C177: ACC | D177: Air Force | E177: FY02, 1st Q | F177: Inpatient | G177: 133 | H177: 5 | I177: 0 | J177: 11939.18 | K177: 54632.01 | L177: 57529.37 | M177: 0 | N177: 31967.8 | O177: 15038.15 | P177: 31595.56 | Q177: 0 | R177: 489.77 | S177: 0 | T177: 11939.18 | U177: 10523.42 | V177: 19426.84 | W177: 3119.84 | X177: 0
A178: 0104 | B178: NH Beaufort | C178: Navy Medicine East | D178: Navy | E178: FY02, 1st Q | F178: Inpatient | G178: 117 | H178: 21 | I178: 0 | J178: 117606.62 | K178: 644971.76 | L178: 763768.44 | M178: 73460.33 | N178: 142771.55 | O178: 38607.67 | P178: 103201.07 | Q178: 0 | R178: 23145.31 | S178: 820.59 | T178: 44146.29 | U178: 579950.23 | V178: 458226.68 | W178: 60398.7 | X178: 1618.4
A179: 0105 | B179: Ft. Jackson (Moncrief Army Community Hospital) | C179: RHC-A | D179: Army | E179: FY02, 1st Q | F179: Inpatient | G179: 71 | H179: 5 | I179: 1 | J179: 29157.41 | K179: 200227.38 | L179: 289751.54 | M179: 7422.54 | N179: 82270.76 | O179: 110600.85 | P179: 69817.99 | Q179: 2397.85 | R179: 17874.12 | S179: 11271.83 | T179: 19337.02 | U179: 77206.23 | V179: 78968.61 | W179: 33566.66 | X179: 8401.87
A180: 0108 | B180: Ft. Bliss (William Beaumont Army Medical Center) | C180: RHC-C | D180: Army | E180: FY02, 1st Q | F180: Inpatient | G180: 1481 | H180: 59 | I180: 0 | J180: 669652.97 | K180: 8021254.57 | L180: 8228023.7 | M180: 307835.37 | N180: 1997110.4 | O180: 1094793.27 | P180: 1886494.23 | Q180: 0 | R180: 642436.79 | S180: 21102.33 | T180: 361817.6 | U180: 5097790.45 | V180: 4766404.3 | W180: 725919.25 | X180: 17227.25
A181: 0109 | B181: BAMC-SAMMC JBSA FSH | C181: RHC-C | D181: Army | E181: FY02, 1st Q | F181: Inpatient | G181: 3894 | H181: 53 | I181: 1 | J181: 604805.86 | K181: 5375499.61 | L181: 6845780.08 | M181: 0 | N181: 1103043.06 | O181: 1640218.17 | P181: 2042106.03 | Q181: 13135.2 | R181: 828734.59 | S181: 57923.76 | T181: 591670.66 | U181: 519292.41 | V181: 680525.65 | W181: 1824133.34 | X181: 3525302.68
A182: 0110 | B182: Ft. Hood (C.R. Darnall Army Medical Center) | C182: RHC-C | D182: Army | E182: FY02, 1st Q | F182: Inpatient | G182: 1870 | H182: 26 | I182: 0 | J182: 153523.36 | K182: 944185.98 | L182: 1024520.01 | M182: 10798.41 | N182: 470298.58 | O182: 140728.44 | P182: 479112.37 | Q182: 0 | R182: 68288.39 | S182: 0 | T182: 142724.95 | U182: 398523.85 | V182: 374694.73 | W182: 22090.49 | X182: 14969.14
A183: 0113 | B183: Sheppard AFB (82nd Medical Group) | C183: AETC | D183: Air Force | E183: FY02, 1st Q | F183: Inpatient | G183: 149 | H183: 10 | I183: 0 | J183: 73656.16 | K183: 457871.86 | L183: 189934.4 | M183: 35340.34 | N183: 92618.07 | O183: 24194.55 | P183: 126058.59 | Q183: 0 | R183: 44957.4 | S183: 0 | T183: 38315.82 | U183: 73121.78 | V183: 272968.41 | W183: 13887.46 | X183: 0
A184: 0117 | B184: Lackland AFB (59th Medical Wing) | C184: AETC | D184: Air Force | E184: FY02, 1st Q | F184: Inpatient | G184: 3352 | H184: 118 | I184: 14 | J184: 1608294.11 | K184: 7088161.86 | L184: 8859899.36 | M184: 36464.34 | N184: 2373586 | O184: 573179 | P184: 2248697.3 | Q184: 56302.57 | R184: 459105.06 | S184: 658.64 | T184: 1515527.2 | U184: 5893586.41 | V184: 3514169.15 | W184: 866190.35 | X184: 18889.31
A185: 0120 | B185: Langley AFB (1st Medical Group) | C185: ACC | D185: Air Force | E185: FY02, 1st Q | F185: Inpatient | G185: 518 | H185: 10 | I185: 0 | J185: 92774.45 | K185: 265912.17 | L185: 388503.1 | M185: 72657.35 | N185: 127164.25 | O185: 39185.59 | P185: 89243.3 | Q185: 0 | R185: 29595.04 | S185: 0 | T185: 20117.1 | U185: 222153.26 | V185: 123724.62 | W185: 23349.21 | X185: 0
A186: 0121 | B186: Ft. Eustis (McDonald Army Health Center) | C186: RHC-A | D186: Army | E186: FY02, 1st Q | F186: Inpatient | G186: 59 | H186: 5 | I186: 0 | J186: 23106.18 | K186: 74050.88 | L186: 130749.69 | M186: 18778.14 | N186: 42520.37 | O186: 23279.83 | P186: 28426.07 | Q186: 0 | R186: 6833.16 | S186: 0 | T186: 4328.04 | U186: 62082.79 | V186: 38791.65 | W186: 0 | X186: 2866.7
A187: 0123 | B187: Ft. Belvoir (FT. Belvoir Community Hospital) | C187: NCR MD | D187: NCR MD | E187: FY02, 1st Q | F187: Inpatient | G187: 698 | H187: 39 | I187: 0 | J187: 371116.79 | K187: 1170695.18 | L187: 482072.88 | M187: 184818.46 | N187: 0 | O187: 3885.82 | P187: 15810.62 | Q187: 0 | R187: 28442.68 | S187: 16393.23 | T187: 186298.33 | U187: 183818.87 | V187: 550650.68 | W187: 575791.2 | X187: 277974.96
A188: 0124 | B188: NMC Portsmouth | C188: Navy Medicine East | D188: Navy | E188: FY02, 1st Q | F188: Inpatient | G188: 3405 | H188: 79 | I188: 0 | J188: 860183.69 | K188: 9626386.47 | L188: 9607337.8 | M188: 27414.48 | N188: 1047946.96 | O188: 1103266.18 | P188: 1494483.85 | Q188: 0 | R188: 846287.94 | S188: 74563.98 | T188: 832769.21 | U188: 7212711.05 | V188: 5871532.53 | W188: 1414082.15 | X188: 168849.63
A189: 0125 | B189: Ft. Lewis (Madigan Army Medical Center) | C189: RHC-P | D189: Army | E189: FY02, 1st Q | F189: Inpatient | G189: 2240 | H189: 77 | I189: 0 | J189: 1397440.19 | K189: 6495772.17 | L189: 6417647.2 | M189: 482422.59 | N189: 2178894.25 | O189: 1612529.42 | P189: 2202729.26 | Q189: 0 | R189: 717436.56 | S189: 58828.83 | T189: 915017.6 | U189: 1624886.06 | V189: 1562059.55 | W189: 2013546.8 | X189: 942508.64
A190: 0126 | B190: NH Bremerton | C190: Navy Medicine West | D190: Navy | E190: FY02, 1st Q | F190: Inpatient | G190: 657 | H190: 32 | I190: 1 | J190: 300098.76 | K190: 1889364.01 | L190: 1648570.55 | M190: 188917.05 | N190: 449057.59 | O190: 138428.4 | P190: 467021.85 | Q190: 3178.95 | R190: 57035.74 | S190: 0 | T190: 108002.76 | U190: 1061084.56 | V190: 1252639.55 | W190: 112666.87 | X190: 0
A191: 0127 | B191: NHC Oak Harbor | C191: Navy Medicine West | D191: Navy | E191: FY02, 1st Q | F191: Inpatient | G191: 263 | H191: 7 | I191: 0 | J191: 31268.63 | K191: 152349.57 | L191: 111286.72 | M191: 5833.81 | N191: 38775.02 | O191: 5834.91 | P191: 38437.63 | Q191: 0 | R191: 17602.86 | S191: 0 | T191: 25434.82 | U191: 61288.8 | V191: 65666.19 | W191: 30642.89 | X191: 5387.99
A192: 0131 | B192: Ft. Irwin (Weed Army Community Hospital) | C192: RHC-C | D192: Army | E192: FY02, 1st Q | F192: Inpatient | G192: 207 | H192: 0 | I192: 0 | J192: 7008.9 | K192: 70057.88 | L192: 17376.36 | M192: 6216.9 | N192: 3590.6 | O192: 303.87 | P192: 11588.23 | Q192: 0 | R192: 0 | S192: 0 | T192: 792 | U192: 6676.81 | V192: 45922.63 | W192: 12547.02 | X192: 6805.08
A193: 0606 | B193: Heidelberg MEDDAC | C193: Europe Regional Medical Command (ERMC) | D193: Army | E193: FY02, 1st Q | F193: Inpatient | G193: 355 | H193: 0 | I193: 0 | J193: 5470.13 | K193: 78569.86 | L193: 47246.94 | M193: 0 | N193: 37959.79 | O193: 6989.72 | P193: 51875.23 | Q193: 0 | R193: 15665.02 | S193: 0 | T193: 5470.13 | U193: 2297.43 | V193: 1905.57 | W193: 9124.04 | X193: 0
A194: 0607 | B194: Landstuhl Regional Medical Center | C194: RHC-E | D194: Army | E194: FY02, 1st Q | F194: Inpatient | G194: 889 | H194: 9 | I194: 0 | J194: 124845.67 | K194: 768689.64 | L194: 1014808 | M194: 0 | N194: 881159.39 | O194: 61573.46 | P194: 440130.16 | Q194: 0 | R194: 164064.21 | S194: 0 | T194: 124845.67 | U194: 47252.25 | V194: 116300.2 | W194: 48195.07 | X194: 24822.9
A195: 0609 | B195: Bavaria MEDDAC | C195: RHC-E | D195: Army | E195: FY02, 1st Q | F195: Inpatient | G195: 304 | H195: 0 | I195: 0 | J195: 16161 | K195: 136331.32 | L195: 89790.89 | M195: 0 | N195: 10778.64 | O195: 30905.54 | P195: 30878.33 | Q195: 0 | R195: 81647.91 | S195: 13584.96 | T195: 16161 | U195: 750 | V195: 23805.08 | W195: 0 | X195: 33771.75
A196: 0612 | B196: Brian Allgood ACH - Seoul | C196: RHC-P | D196: Army | E196: FY02, 1st Q | F196: Inpatient | G196: 65 | H196: 4 | I196: 0 | J196: 42604.66 | K196: 107966.63 | L196: 110954.65 | M196: 0 | N196: 54430.29 | O196: 15414.89 | P196: 52467.37 | Q196: 0 | R196: 12154.82 | S196: 0 | T196: 42604.66 | U196: 9983.4 | V196: 5227.98 | W196: 38116.46 | X196: 31126.07
A197: 0616 | B197: NH Roosevelt Roads | C197: Navy Medicine East | D197: Navy | E197: FY02, 1st Q | F197: Inpatient | G197: 138 | H197: 0 | I197: 0 | J197: 0 | K197: 91875.33 | L197: 79579.37 | M197: 0 | N197: 11666.76 | O197: 1764.9 | P197: 4853.69 | Q197: 0 | R197: 0 | S197: 0 | T197: 0 | U197: 12026.61 | V197: 44697.59 | W197: 42324.05 | X197: 54121.1
A198: 0620 | B198: NH Guam | C198: Navy Medicine West | D198: Navy | E198: FY02, 1st Q | F198: Inpatient | G198: 388 | H198: 9 | I198: 0 | J198: 49624.14 | K198: 227838.87 | L198: 459842.63 | M198: 0 | N198: 154358.97 | O198: 59705.42 | P198: 57661.55 | Q198: 0 | R198: 28581.54 | S198: 0 | T198: 49624.14 | U198: 239278.26 | V198: 77263.54 | W198: 64332.24 | X198: 6499.98
A199: 0003 | B199: Ft. Rucker (Lyster Army Health Clinic) | C199: RHC-A | D199: Army | E199: FY03, 1st Q | F199: Inpatient | G199: 27 | H199: 2 | I199: 0 | J199: 14798.84 | K199: 72411.84 | L199: 129083.66 | M199: 0 | N199: 72523.89 | O199: 20100.05 | P199: 54877.77 | Q199: 0 | R199: 0 | S199: 0 | T199: 14798.84 | U199: 36459.72 | V199: 17534.07 | W199: 0 | X199: 0
A200: 0005 | B200: Ft. Wainwright (Bassett Army Community Hospital) | C200: RHC-P | D200: Army | E200: FY03, 1st Q | F200: Inpatient | G200: 364 | H200: 7 | I200: 1 | J200: 37654.37 | K200: 533861.32 | L200: 415960.14 | M200: 3171.51 | N200: 147931.08 | O200: 163578.82 | P200: 326247.88 | Q200: 3983.51 | R200: 25524.71 | S200: 872.23 | T200: 30499.35 | U200: 101804.69 | V200: 159146.03 | W200: 22942.7 | X200: 1773.32
... 2050 more rows

Sheet fiscal year sort
A3: Count of Fiscal_Year
A4: Fiscal_Year | B4: Total
A5: ALL201300 | B5: 1
A6: ALL201500 | B6: 6
A7: ALL201600 | B7: 8
A8: ALL201700 | B8: 6
A9: FY00, 1st Q | B9: 200
A10: FY00, 2nd Q | B10: 193
A11: FY00, 3rd Q | B11: 195
A12: FY00, 4th Q | B12: 199
A13: FY01, 1st Q | B13: 192
A14: FY01, 2nd Q | B14: 193
A15: FY01, 3rd Q | B15: 195
A16: FY01, 4th Q | B16: 193
A17: FY02, 1st Q | B17: 191
A18: FY02, 2nd Q | B18: 188
A19: FY02, 3rd Q | B19: 191
A20: FY02, 4th Q | B20: 187
A21: FY03, 1st Q | B21: 186
A22: FY03, 2nd Q | B22: 189
A23: FY03, 3rd Q | B23: 186
A24: FY03, 4th Q | B24: 189
A25: FY04, 1st Q | B25: 187
A26: FY04, 2nd Q | B26: 185
A27: FY04, 3rd Q | B27: 182
A28: FY04, 4th Q | B28: 188
A29: FY05, 1st Q | B29: 188
A30: FY05, 2nd Q | B30: 188
A31: FY05, 3rd Q | B31: 189
A32: FY05, 4th Q | B32: 190
A33: FY06, 1st Q | B33: 186
A34: FY06, 2nd Q | B34: 186
A35: FY06, 3rd Q | B35: 186
A36: FY06, 4th Q | B36: 186
A37: FY07, 1st Q | B37: 181
A38: FY07, 2nd Q | B38: 182
A39: FY07, 3rd Q | B39: 181
A40: FY07, 4th Q | B40: 179
A41: FY08, 1st Q | B41: 178
A42: FY08, 2nd Q | B42: 178
A43: FY08, 3rd Q | B43: 178
A44: FY08, 4th Q | B44: 178
A45: FY09, 1st Q | B45: 173
A46: FY09, 2nd Q | B46: 174
A47: FY09, 3rd Q | B47: 171
A48: FY09, 4th Q | B48: 173
A49: FY10, 1st Q | B49: 172
A50: FY10, 2nd Q | B50: 171
A51: FY10, 3rd Q | B51: 170
A52: FY10, 4th Q | B52: 169
A53: FY11, 1st Q | B53: 168
A54: FY11, 2nd Q | B54: 168
A55: FY11, 3rd Q | B55: 168
A56: FY11, 4th Q | B56: 168
A57: FY12, 1st Q | B57: 166
A58: FY12, 2nd Q | B58: 166
A59: FY12, 3rd Q | B59: 166
A60: FY12, 4th Q | B60: 166
A61: FY13, 1st Q | B61: 163
A62: FY13, 2nd Q | B62: 163
A63: FY13, 3rd Q | B63: 162
A64: FY13, 4th Q | B64: 162
A65: FY14, 1st Q | B65: 160
A66: FY14, 2nd Q | B66: 158
A67: FY14, 3rd Q | B67: 158
A68: FY14, 4th Q | B68: 158
A69: FY15, 1st Q | B69: 159
A70: FY15, 2nd Q | B70: 158
A71: FY15, 3rd Q | B71: 158
A72: FY15, 4th Q | B72: 160
A73: FY16, 1st Q | B73: 170
A74: FY16, 2nd Q | B74: 171
A75: FY16, 3rd Q | B75: 170
A76: FY16, 4th Q | B76: 172
A77: FY17, 1st Q | B77: 173
A78: FY17, 2nd Q | B78: 173
A79: FY17, 3rd Q | B79: 173
A80: FY17, 4th Q | B80: 168
A81: FY18, 1st Q | B81: 170
A82: FY18, 2nd Q | B82: 173
A83: FY18, 3rd Q | B83: 173
A84: FY99, 3rd Q | B84: 206
A85: FY99, 4th Q | B85: 205
A86: Grand Total | B86: 13689
